Workbook

Sheet Nakit Akış
A1: Nakit Akış Raporu
A2: 2020-04-30
B5: Başlangıç Bakiye | E5: =SUMIF(Nakit_Akis[Giriş/Çıkış],$B5,Nakit_Akis[Tutar]) -> 100000
B6: Nakit Girişleri | E6: =SUMIF(Nakit_Akis[Giriş/Çıkış],$B6,Nakit_Akis[Tutar]) -> 720000
B7: Nakit Çıkışları | E7: =SUMIF(Nakit_Akis[Giriş/Çıkış],$B7,Nakit_Akis[Tutar]) -> -808100
B8: Kapanış Nakit | E8: =E5+E6+E7 -> 11900
B10: Asgari Nakit Seviyes | E10: 100000
B15: Veri Girdikten sonra yukarıdaki tuşlara vas
C20: Giriş Yap | J20: İşlem Türünü Seç | K20: Taraf Gir | L20: Açıklama Gir | M20: Tutar Gir
B22: Sıra | C22: Tarih | D22: Gün | E22: Hafta | F22: Ay | G22: Giriş/Çıkış | H22: İşlem Grubu | I22: Ödeme Şekli | J22: İşlem Türü | K22: Taraf | L22: Açıklama | M22: Tutar | N22: Kontrol | O22: Bakiye
B23: =COUNTA(INDEX(Nakit_Akis[Tarih],1):Nakit_Akis[[#This Row],[Tarih]]) -> 1 | C23: 2020-05-01 | D23: =VLOOKUP(WEEKDAY(Nakit_Akis[[#This Row],[Tarih]],2),Gunler[#All],2,0) -> Cuma | E23: =IF(Nakit_Akis[[#This Row],[İşlem Türü]]="Başlangıç Bakiye",WEEKNUM(Nakit_Akis[[#This Row],[Tarih]],2)-1,WEEKNUM(Nakit_Akis[[#This Row],[Tarih]],2)) -> 17 | F23: =IF(Nakit_Akis[[#This Row],[İşlem Türü]]="Başlangıç Bakiye",MONTH(Nakit_Akis[[#This Row],[Tarih]])-1,MONTH(Nakit_Akis[[#This Row],[Tarih]])) -> 4 | G23: =VLOOKUP(J23,Grup[#All],3,0) -> Başlangıç Bakiye | H23: =VLOOKUP(J23,Grup[#All],2,0) -> Başlangıç Bakiye | J23: Başlangıç Bakiye | M23: 100000 | N23: =IF(OR(AND(Nakit_Akis[[#This Row],[Giriş/Çıkış]]="Nakit Çıkışları",Nakit_Akis[[#This Row],[Tutar]]<0),AND(Nakit_Akis[[#This Row],[Giriş/Çıkış]]<>"Nakit Çıkışları",Nakit_Akis[[#This Row],[Tutar]]>0)),"","Hata") ->  | O23: =SUM(INDEX(Nakit_Akis[Tutar],1):Nakit_Akis[[#This Row],[Tutar]]) -> 100000
B24: =COUNTA(INDEX(Nakit_Akis[Tarih],1):Nakit_Akis[[#This Row],[Tarih]]) -> 2 | C24: 2020-05-01 | D24: =VLOOKUP(WEEKDAY(Nakit_Akis[[#This Row],[Tarih]],2),Gunler[#All],2,0) -> Cuma | E24: =IF(Nakit_Akis[[#This Row],[İşlem Türü]]="Başlangıç Bakiye",WEEKNUM(Nakit_Akis[[#This Row],[Tarih]],2)-1,WEEKNUM(Nakit_Akis[[#This Row],[Tarih]],2)) -> 18 | F24: =IF(Nakit_Akis[[#This Row],[İşlem Türü]]="Başlangıç Bakiye",MONTH(Nakit_Akis[[#This Row],[Tarih]])-1,MONTH(Nakit_Akis[[#This Row],[Tarih]])) -> 5 | G24: =VLOOKUP(J24,Grup[#All],3,0) -> Nakit Çıkışları | H24: =VLOOKUP(J24,Grup[#All],2,0) -> Operasyon | I24: EFT | J24: Tedarikçi Ödemeleri | K24: A Madencilik | M24: -10000 | N24: =IF(OR(AND(Nakit_Akis[[#This Row],[Giriş/Çıkış]]="Nakit Çıkışları",Nakit_Akis[[#This Row],[Tutar]]<0),AND(Nakit_Akis[[#This Row],[Giriş/Çıkış]]<>"Nakit Çıkışları",Nakit_Akis[[#This Row],[Tutar]]>0)),"","Hata") ->  | O24: =SUM(INDEX(Nakit_Akis[Tutar],1):Nakit_Akis[[#This Row],[Tutar]]) -> 90000
B25: =COUNTA(INDEX(Nakit_Akis[Tarih],1):Nakit_Akis[[#This Row],[Tarih]]) -> 3 | C25: 2020-05-04 | D25: =VLOOKUP(WEEKDAY(Nakit_Akis[[#This Row],[Tarih]],2),Gunler[#All],2,0) -> Pazartesi | E25: =IF(Nakit_Akis[[#This Row],[İşlem Türü]]="Başlangıç Bakiye",WEEKNUM(Nakit_Akis[[#This Row],[Tarih]],2)-1,WEEKNUM(Nakit_Akis[[#This Row],[Tarih]],2)) -> 19 | F25: =IF(Nakit_Akis[[#This Row],[İşlem Türü]]="Başlangıç Bakiye",MONTH(Nakit_Akis[[#This Row],[Tarih]])-1,MONTH(Nakit_Akis[[#This Row],[Tarih]])) -> 5 | G25: =VLOOKUP(J25,Grup[#All],3,0) -> Nakit Girişleri | H25: =VLOOKUP(J25,Grup[#All],2,0) -> Operasyon | I25: Çek | J25: Tahsilatlar | K25: B İnşaat | M25: 25000 | N25: =IF(OR(AND(Nakit_Akis[[#This Row],[Giriş/Çıkış]]="Nakit Çıkışları",Nakit_Akis[[#This Row],[Tutar]]<0),AND(Nakit_Akis[[#This Row],[Giriş/Çıkış]]<>"Nakit Çıkışları",Nakit_Akis[[#This Row],[Tutar]]>0)),"","Hata") ->  | O25: =SUM(INDEX(Nakit_Akis[Tutar],1):Nakit_Akis[[#This Row],[Tutar]]) -> 115000
B26: =COUNTA(INDEX(Nakit_Akis[Tarih],1):Nakit_Akis[[#This Row],[Tarih]]) -> 4 | C26: 2020-05-04 | D26: =VLOOKUP(WEEKDAY(Nakit_Akis[[#This Row],[Tarih]],2),Gunler[#All],2,0) -> Pazartesi | E26: =IF(Nakit_Akis[[#This Row],[İşlem Türü]]="Başlangıç Bakiye",WEEKNUM(Nakit_Akis[[#This Row],[Tarih]],2)-1,WEEKNUM(Nakit_Akis[[#This Row],[Tarih]],2)) -> 19 | F26: =IF(Nakit_Akis[[#This Row],[İşlem Türü]]="Başlangıç Bakiye",MONTH(Nakit_Akis[[#This Row],[Tarih]])-1,MONTH(Nakit_Akis[[#This Row],[Tarih]])) -> 5 | G26: =VLOOKUP(J26,Grup[#All],3,0) -> Nakit Girişleri | H26: =VLOOKUP(J26,Grup[#All],2,0) -> Operasyon | I26: Çek | J26: Tahsilatlar | K26: A Ticaret | M26: 10000 | N26: =IF(OR(AND(Nakit_Akis[[#This Row],[Giriş/Çıkış]]="Nakit Çıkışları",Nakit_Akis[[#This Row],[Tutar]]<0),AND(Nakit_Akis[[#This Row],[Giriş/Çıkış]]<>"Nakit Çıkışları",Nakit_Akis[[#This Row],[Tutar]]>0)),"","Hata") ->  | O26: =SUM(INDEX(Nakit_Akis[Tutar],1):Nakit_Akis[[#This Row],[Tutar]]) -> 125000
B27: =COUNTA(INDEX(Nakit_Akis[Tarih],1):Nakit_Akis[[#This Row],[Tarih]]) -> 5 | C27: 2020-05-05 | D27: =VLOOKUP(WEEKDAY(Nakit_Akis[[#This Row],[Tarih]],2),Gunler[#All],2,0) -> Salı | E27: =IF(Nakit_Akis[[#This Row],[İşlem Türü]]="Başlangıç Bakiye",WEEKNUM(Nakit_Akis[[#This Row],[Tarih]],2)-1,WEEKNUM(Nakit_Akis[[#This Row],[Tarih]],2)) -> 19 | F27: =IF(Nakit_Akis[[#This Row],[İşlem Türü]]="Başlangıç Bakiye",MONTH(Nakit_Akis[[#This Row],[Tarih]])-1,MONTH(Nakit_Akis[[#This Row],[Tarih]])) -> 5 | G27: =VLOOKUP(J27,Grup[#All],3,0) -> Nakit Çıkışları | H27: =VLOOKUP(J27,Grup[#All],2,0) -> Operasyon | I27: EFT | J27: Kira Ödemeleri | K27: Vergi Dairesi | M27: -10000 | N27: =IF(OR(AND(Nakit_Akis[[#This Row],[Giriş/Çıkış]]="Nakit Çıkışları",Nakit_Akis[[#This Row],[Tutar]]<0),AND(Nakit_Akis[[#This Row],[Giriş/Çıkış]]<>"Nakit Çıkışları",Nakit_Akis[[#This Row],[Tutar]]>0)),"","Hata") ->  | O27: =SUM(INDEX(Nakit_Akis[Tutar],1):Nakit_Akis[[#This Row],[Tutar]]) -> 115000
B28: =COUNTA(INDEX(Nakit_Akis[Tarih],1):Nakit_Akis[[#This Row],[Tarih]]) -> 6 | C28: 2020-05-05 | D28: =VLOOKUP(WEEKDAY(Nakit_Akis[[#This Row],[Tarih]],2),Gunler[#All],2,0) -> Salı | E28: =IF(Nakit_Akis[[#This Row],[İşlem Türü]]="Başlangıç Bakiye",WEEKNUM(Nakit_Akis[[#This Row],[Tarih]],2)-1,WEEKNUM(Nakit_Akis[[#This Row],[Tarih]],2)) -> 19 | F28: =IF(Nakit_Akis[[#This Row],[İşlem Türü]]="Başlangıç Bakiye",MONTH(Nakit_Akis[[#This Row],[Tarih]])-1,MONTH(Nakit_Akis[[#This Row],[Tarih]])) -> 5 | G28: =VLOOKUP(J28,Grup[#All],3,0) -> Nakit Çıkışları | H28: =VLOOKUP(J28,Grup[#All],2,0) -> Operasyon | I28: EFT | J28: Personel Ücretleri | K28: Personel | M28: -90000 | N28: =IF(OR(AND(Nakit_Akis[[#This Row],[Giriş/Çıkış]]="Nakit Çıkışları",Nakit_Akis[[#This Row],[Tutar]]<0),AND(Nakit_Akis[[#This Row],[Giriş/Çıkış]]<>"Nakit Çıkışları",Nakit_Akis[[#This Row],[Tutar]]>0)),"","Hata") ->  | O28: =SUM(INDEX(Nakit_Akis[Tutar],1):Nakit_Akis[[#This Row],[Tutar]]) -> 25000
B29: =COUNTA(INDEX(Nakit_Akis[Tarih],1):Nakit_Akis[[#This Row],[Tarih]]) -> 7 | C29: 2020-05-07 | D29: =VLOOKUP(WEEKDAY(Nakit_Akis[[#This Row],[Tarih]],2),Gunler[#All],2,0) -> Perşembe | E29: =IF(Nakit_Akis[[#This Row],[İşlem Türü]]="Başlangıç Bakiye",WEEKNUM(Nakit_Akis[[#This Row],[Tarih]],2)-1,WEEKNUM(Nakit_Akis[[#This Row],[Tarih]],2)) -> 19 | F29: =IF(Nakit_Akis[[#This Row],[İşlem Türü]]="Başlangıç Bakiye",MONTH(Nakit_Akis[[#This Row],[Tarih]])-1,MONTH(Nakit_Akis[[#This Row],[Tarih]])) -> 5 | G29: =VLOOKUP(J29,Grup[#All],3,0) -> Nakit Girişleri | H29: =VLOOKUP(J29,Grup[#All],2,0) -> Operasyon | I29: Nakit | J29: Tahsilatlar | K29: C Mimarlık | M29: 15000 | N29: =IF(OR(AND(Nakit_Akis[[#This Row],[Giriş/Çıkış]]="Nakit Çıkışları",Nakit_Akis[[#This Row],[Tutar]]<0),AND(Nakit_Akis[[#This Row],[Giriş/Çıkış]]<>"Nakit Çıkışları",Nakit_Akis[[#This Row],[Tutar]]>0)),"","Hata") ->  | O29: =SUM(INDEX(Nakit_Akis[Tutar],1):Nakit_Akis[[#This Row],[Tutar]]) -> 40000
B30: =COUNTA(INDEX(Nakit_Akis[Tarih],1):Nakit_Akis[[#This Row],[Tarih]]) -> 8 | C30: 2020-05-07 | D30: =VLOOKUP(WEEKDAY(Nakit_Akis[[#This Row],[Tarih]],2),Gunler[#All],2,0) -> Perşembe | E30: =IF(Nakit_Akis[[#This Row],[İşlem Türü]]="Başlangıç Bakiye",WEEKNUM(Nakit_Akis[[#This Row],[Tarih]],2)-1,WEEKNUM(Nakit_Akis[[#This Row],[Tarih]],2)) -> 19 | F30: =IF(Nakit_Akis[[#This Row],[İşlem Türü]]="Başlangıç Bakiye",MONTH(Nakit_Akis[[#This Row],[Tarih]])-1,MONTH(Nakit_Akis[[#This Row],[Tarih]])) -> 5 | G30: =VLOOKUP(J30,Grup[#All],3,0) -> Nakit Çıkışları | H30: =VLOOKUP(J30,Grup[#All],2,0) -> Operasyon | I30: EFT | J30: Tedarikçi Ödemeleri | K30: C Nakliyay | M30: -12500 | N30: =IF(OR(AND(Nakit_Akis[[#This Row],[Giriş/Çıkış]]="Nakit Çıkışları",Nakit_Akis[[#This Row],[Tutar]]<0),AND(Nakit_Akis[[#This Row],[Giriş/Çıkış]]<>"Nakit Çıkışları",Nakit_Akis[[#This Row],[Tutar]]>0)),"","Hata") ->  | O30: =SUM(INDEX(Nakit_Akis[Tutar],1):Nakit_Akis[[#This Row],[Tutar]]) -> 27500
B31: =COUNTA(INDEX(Nakit_Akis[Tarih],1):Nakit_Akis[[#This Row],[Tarih]]) -> 9 | C31: 2020-05-07 | D31: =VLOOKUP(WEEKDAY(Nakit_Akis[[#This Row],[Tarih]],2),Gunler[#All],2,0) -> Perşembe | E31: =IF(Nakit_Akis[[#This Row],[İşlem Türü]]="Başlangıç Bakiye",WEEKNUM(Nakit_Akis[[#This Row],[Tarih]],2)-1,WEEKNUM(Nakit_Akis[[#This Row],[Tarih]],2)) -> 19 | F31: =IF(Nakit_Akis[[#This Row],[İşlem Türü]]="Başlangıç Bakiye",MONTH(Nakit_Akis[[#This Row],[Tarih]])-1,MONTH(Nakit_Akis[[#This Row],[Tarih]])) -> 5 | G31: =VLOOKUP(J31,Grup[#All],3,0) -> Nakit Çıkışları | H31: =VLOOKUP(J31,Grup[#All],2,0) -> Operasyon | I31: EFT | J31: Tedarikçi Ödemeleri | K31: D Nalburiye | M31: -25000 | N31: =IF(OR(AND(Nakit_Akis[[#This Row],[Giriş/Çıkış]]="Nakit Çıkışları",Nakit_Akis[[#This Row],[Tutar]]<0),AND(Nakit_Akis[[#This Row],[Giriş/Çıkış]]<>"Nakit Çıkışları",Nakit_Akis[[#This Row],[Tutar]]>0)),"","Hata") ->  | O31: =SUM(INDEX(Nakit_Akis[Tutar],1):Nakit_Akis[[#This Row],[Tutar]]) -> 2500
B32: =COUNTA(INDEX(Nakit_Akis[Tarih],1):Nakit_Akis[[#This Row],[Tarih]]) -> 10 | C32: 2020-05-11 | D32: =VLOOKUP(WEEKDAY(Nakit_Akis[[#This Row],[Tarih]],2),Gunler[#All],2,0) -> Pazartesi | E32: =IF(Nakit_Akis[[#This Row],[İşlem Türü]]="Başlangıç Bakiye",WEEKNUM(Nakit_Akis[[#This Row],[Tarih]],2)-1,WEEKNUM(Nakit_Akis[[#This Row],[Tarih]],2)) -> 20 | F32: =IF(Nakit_Akis[[#This Row],[İşlem Türü]]="Başlangıç Bakiye",MONTH(Nakit_Akis[[#This Row],[Tarih]])-1,MONTH(Nakit_Akis[[#This Row],[Tarih]])) -> 5 | G32: =VLOOKUP(J32,Grup[#All],3,0) -> Nakit Girişleri | H32: =VLOOKUP(J32,Grup[#All],2,0) -> Operasyon | I32: Çek | J32: Tahsilatlar | K32: D Peyzaj İşleri | M32: 15000 | N32: =IF(OR(AND(Nakit_Akis[[#This Row],[Giriş/Çıkış]]="Nakit Çıkışları",Nakit_Akis[[#This Row],[Tutar]]<0),AND(Nakit_Akis[[#This Row],[Giriş/Çıkış]]<>"Nakit Çıkışları",Nakit_Akis[[#This Row],[Tutar]]>0)),"","Hata") ->  | O32: =SUM(INDEX(Nakit_Akis[Tutar],1):Nakit_Akis[[#This Row],[Tutar]]) -> 17500
B33: =COUNTA(INDEX(Nakit_Akis[Tarih],1):Nakit_Akis[[#This Row],[Tarih]]) -> 11 | C33: 2020-05-13 | D33: =VLOOKUP(WEEKDAY(Nakit_Akis[[#This Row],[Tarih]],2),Gunler[#All],2,0) -> Çarşamba | E33: =IF(Nakit_Akis[[#This Row],[İşlem Türü]]="Başlangıç Bakiye",WEEKNUM(Nakit_Akis[[#This Row],[Tarih]],2)-1,WEEKNUM(Nakit_Akis[[#This Row],[Tarih]],2)) -> 20 | F33: =IF(Nakit_Akis[[#This Row],[İşlem Türü]]="Başlangıç Bakiye",MONTH(Nakit_Akis[[#This Row],[Tarih]])-1,MONTH(Nakit_Akis[[#This Row],[Tarih]])) -> 5 | G33: =VLOOKUP(J33,Grup[#All],3,0) -> Nakit Girişleri | H33: =VLOOKUP(J33,Grup[#All],2,0) -> Operasyon | I33: EFT | J33: Tahsilatlar | K33: E Restorasyon | M33: 25000 | N33: =IF(OR(AND(Nakit_Akis[[#This Row],[Giriş/Çıkış]]="Nakit Çıkışları",Nakit_Akis[[#This Row],[Tutar]]<0),AND(Nakit_Akis[[#This Row],[Giriş/Çıkış]]<>"Nakit Çıkışları",Nakit_Akis[[#This Row],[Tutar]]>0)),"","Hata") ->  | O33: =SUM(INDEX(Nakit_Akis[Tutar],1):Nakit_Akis[[#This Row],[Tutar]]) -> 42500
B34: =COUNTA(INDEX(Nakit_Akis[Tarih],1):Nakit_Akis[[#This Row],[Tarih]]) -> 12 | C34: 2020-05-13 | D34: =VLOOKUP(WEEKDAY(Nakit_Akis[[#This Row],[Tarih]],2),Gunler[#All],2,0) -> Çarşamba | E34: =IF(Nakit_Akis[[#This Row],[İşlem Türü]]="Başlangıç Bakiye",WEEKNUM(Nakit_Akis[[#This Row],[Tarih]],2)-1,WEEKNUM(Nakit_Akis[[#This Row],[Tarih]],2)) -> 20 | F34: =IF(Nakit_Akis[[#This Row],[İşlem Türü]]="Başlangıç Bakiye",MONTH(Nakit_Akis[[#This Row],[Tarih]])-1,MONTH(Nakit_Akis[[#This Row],[Tarih]])) -> 5 | G34: =VLOOKUP(J34,Grup[#All],3,0) -> Nakit Çıkışları | H34: =VLOOKUP(J34,Grup[#All],2,0) -> Operasyon | I34: Çek | J34: Tedarikçi Ödemeleri | K34: A Madencilik | M34: -10000 | N34: =IF(OR(AND(Nakit_Akis[[#This Row],[Giriş/Çıkış]]="Nakit Çıkışları",Nakit_Akis[[#This Row],[Tutar]]<0),AND(Nakit_Akis[[#This Row],[Giriş/Çıkış]]<>"Nakit Çıkışları",Nakit_Akis[[#This Row],[Tutar]]>0)),"","Hata") ->  | O34: =SUM(INDEX(Nakit_Akis[Tutar],1):Nakit_Akis[[#This Row],[Tutar]]) -> 32500
B35: =COUNTA(INDEX(Nakit_Akis[Tarih],1):Nakit_Akis[[#This Row],[Tarih]]) -> 13 | C35: 2020-05-13 | D35: =VLOOKUP(WEEKDAY(Nakit_Akis[[#This Row],[Tarih]],2),Gunler[#All],2,0) -> Çarşamba | E35: =IF(Nakit_Akis[[#This Row],[İşlem Türü]]="Başlangıç Bakiye",WEEKNUM(Nakit_Akis[[#This Row],[Tarih]],2)-1,WEEKNUM(Nakit_Akis[[#This Row],[Tarih]],2)) -> 20 | F35: =IF(Nakit_Akis[[#This Row],[İşlem Türü]]="Başlangıç Bakiye",MONTH(Nakit_Akis[[#This Row],[Tarih]])-1,MONTH(Nakit_Akis[[#This Row],[Tarih]])) -> 5 | G35: =VLOOKUP(J35,Grup[#All],3,0) -> Nakit Çıkışları | H35: =VLOOKUP(J35,Grup[#All],2,0) -> Operasyon | I35: Çek | J35: Tedarikçi Ödemeleri | K35: B Madencilik | M35: -12500 | N35: =IF(OR(AND(Nakit_Akis[[#This Row],[Giriş/Çıkış]]="Nakit Çıkışları",Nakit_Akis[[#This Row],[Tutar]]<0),AND(Nakit_Akis[[#This Row],[Giriş/Çıkış]]<>"Nakit Çıkışları",Nakit_Akis[[#This Row],[Tutar]]>0)),"","Hata") ->  | O35: =SUM(INDEX(Nakit_Akis[Tutar],1):Nakit_Akis[[#This Row],[Tutar]]) -> 20000
B36: =COUNTA(INDEX(Nakit_Akis[Tarih],1):Nakit_Akis[[#This Row],[Tarih]]) -> 14 | C36: 2020-05-14 | D36: =VLOOKUP(WEEKDAY(Nakit_Akis[[#This Row],[Tarih]],2),Gunler[#All],2,0) -> Perşembe | E36: =IF(Nakit_Akis[[#This Row],[İşlem Türü]]="Başlangıç Bakiye",WEEKNUM(Nakit_Akis[[#This Row],[Tarih]],2)-1,WEEKNUM(Nakit_Akis[[#This Row],[Tarih]],2)) -> 20 | F36: =IF(Nakit_Akis[[#This Row],[İşlem Türü]]="Başlangıç Bakiye",MONTH(Nakit_Akis[[#This Row],[Tarih]])-1,MONTH(Nakit_Akis[[#This Row],[Tarih]])) -> 5 | G36: =VLOOKUP(J36,Grup[#All],3,0) -> Nakit Çıkışları | H36: =VLOOKUP(J36,Grup[#All],2,0) -> Operasyon | I36: Çek | J36: Tedarikçi Ödemeleri | K36: B Madencilik | M36: -12500 | N36: =IF(OR(AND(Nakit_Akis[[#This Row],[Giriş/Çıkış]]="Nakit Çıkışları",Nakit_Akis[[#This Row],[Tutar]]<0),AND(Nakit_Akis[[#This Row],[Giriş/Çıkış]]<>"Nakit Çıkışları",Nakit_Akis[[#This Row],[Tutar]]>0)),"","Hata") ->  | O36: =SUM(INDEX(Nakit_Akis[Tutar],1):Nakit_Akis[[#This Row],[Tutar]]) -> 7500
B37: =COUNTA(INDEX(Nakit_Akis[Tarih],1):Nakit_Akis[[#This Row],[Tarih]]) -> 15 | C37: 2020-05-15 | D37: =VLOOKUP(WEEKDAY(Nakit_Akis[[#This Row],[Tarih]],2),Gunler[#All],2,0) -> Cuma | E37: =IF(Nakit_Akis[[#This Row],[İşlem Türü]]="Başlangıç Bakiye",WEEKNUM(Nakit_Akis[[#This Row],[Tarih]],2)-1,WEEKNUM(Nakit_Akis[[#This Row],[Tarih]],2)) -> 20 | F37: =IF(Nakit_Akis[[#This Row],[İşlem Türü]]="Başlangıç Bakiye",MONTH(Nakit_Akis[[#This Row],[Tarih]])-1,MONTH(Nakit_Akis[[#This Row],[Tarih]])) -> 5 | G37: =VLOOKUP(J37,Grup[#All],3,0) -> Nakit Girişleri | H37: =VLOOKUP(J37,Grup[#All],2,0) -> Operasyon | I37: EFT | J37: Tahsilatlar | K37: B İnşaat | M37: 30000 | N37: =IF(OR(AND(Nakit_Akis[[#This Row],[Giriş/Çıkış]]="Nakit Çıkışları",Nakit_Akis[[#This Row],[Tutar]]<0),AND(Nakit_Akis[[#This Row],[Giriş/Çıkış]]<>"Nakit Çıkışları",Nakit_Akis[[#This Row],[Tutar]]>0)),"","Hata") ->  | O37: =SUM(INDEX(Nakit_Akis[Tutar],1):Nakit_Akis[[#This Row],[Tutar]]) -> 37500
B38: =COUNTA(INDEX(Nakit_Akis[Tarih],1):Nakit_Akis[[#This Row],[Tarih]]) -> 16 | C38: 2020-05-15 | D38: =VLOOKUP(WEEKDAY(Nakit_Akis[[#This Row],[Tarih]],2),Gunler[#All],2,0) -> Cuma | E38: =IF(Nakit_Akis[[#This Row],[İşlem Türü]]="Başlangıç Bakiye",WEEKNUM(Nakit_Akis[[#This Row],[Tarih]],2)-1,WEEKNUM(Nakit_Akis[[#This Row],[Tarih]],2)) -> 20 | F38: =IF(Nakit_Akis[[#This Row],[İşlem Türü]]="Başlangıç Bakiye",MONTH(Nakit_Akis[[#This Row],[Tarih]])-1,MONTH(Nakit_Akis[[#This Row],[Tarih]])) -> 5 | G38: =VLOOKUP(J38,Grup[#All],3,0) -> Nakit Çıkışları | H38: =VLOOKUP(J38,Grup[#All],2,0) -> Operasyon | I38: EFT | J38: Elektrik / Su / Doğalgaz | K38: D Doğalgaz Dağıtım | M38: -100 | N38: =IF(OR(AND(Nakit_Akis[[#This Row],[Giriş/Çıkış]]="Nakit Çıkışları",Nakit_Akis[[#This Row],[Tutar]]<0),AND(Nakit_Akis[[#This Row],[Giriş/Çıkış]]<>"Nakit Çıkışları",Nakit_Akis[[#This Row],[Tutar]]>0)),"","Hata") ->  | O38: =SUM(INDEX(Nakit_Akis[Tutar],1):Nakit_Akis[[#This Row],[Tutar]]) -> 37400
B39: =COUNTA(INDEX(Nakit_Akis[Tarih],1):Nakit_Akis[[#This Row],[Tarih]]) -> 17 | C39: 2020-05-15 | D39: =VLOOKUP(WEEKDAY(Nakit_Akis[[#This Row],[Tarih]],2),Gunler[#All],2,0) -> Cuma | E39: =IF(Nakit_Akis[[#This Row],[İşlem Türü]]="Başlangıç Bakiye",WEEKNUM(Nakit_Akis[[#This Row],[Tarih]],2)-1,WEEKNUM(Nakit_Akis[[#This Row],[Tarih]],2)) -> 20 | F39: =IF(Nakit_Akis[[#This Row],[İşlem Türü]]="Başlangıç Bakiye",MONTH(Nakit_Akis[[#This Row],[Tarih]])-1,MONTH(Nakit_Akis[[#This Row],[Tarih]])) -> 5 | G39: =VLOOKUP(J39,Grup[#All],3,0) -> Nakit Çıkışları | H39: =VLOOKUP(J39,Grup[#All],2,0) -> Operasyon | I39: EFT | J39: Elektrik / Su / Doğalgaz | K39: S Su ve Kanalizasyon | M39: -300 | N39: =IF(OR(AND(Nakit_Akis[[#This Row],[Giriş/Çıkış]]="Nakit Çıkışları",Nakit_Akis[[#This Row],[Tutar]]<0),AND(Nakit_Akis[[#This Row],[Giriş/Çıkış]]<>"Nakit Çıkışları",Nakit_Akis[[#This Row],[Tutar]]>0)),"","Hata") ->  | O39: =SUM(INDEX(Nakit_Akis[Tutar],1):Nakit_Akis[[#This Row],[Tutar]]) -> 37100
B40: =COUNTA(INDEX(Nakit_Akis[Tarih],1):Nakit_Akis[[#This Row],[Tarih]]) -> 18 | C40: 2020-05-15 | D40: =VLOOKUP(WEEKDAY(Nakit_Akis[[#This Row],[Tarih]],2),Gunler[#All],2,0) -> Cuma | E40: =IF(Nakit_Akis[[#This Row],[İşlem Türü]]="Başlangıç Bakiye",WEEKNUM(Nakit_Akis[[#This Row],[Tarih]],2)-1,WEEKNUM(Nakit_Akis[[#This Row],[Tarih]],2)) -> 20 | F40: =IF(Nakit_Akis[[#This Row],[İşlem Türü]]="Başlangıç Bakiye",MONTH(Nakit_Akis[[#This Row],[Tarih]])-1,MONTH(Nakit_Akis[[#This Row],[Tarih]])) -> 5 | G40: =VLOOKUP(J40,Grup[#All],3,0) -> Nakit Çıkışları | H40: =VLOOKUP(J40,Grup[#All],2,0) -> Operasyon | I40: EFT | J40: Sigorta Primleri | K40: S Sigorta Acentası | M40: -300 | N40: =IF(OR(AND(Nakit_Akis[[#This Row],[Giriş/Çıkış]]="Nakit Çıkışları",Nakit_Akis[[#This Row],[Tutar]]<0),AND(Nakit_Akis[[#This Row],[Giriş/Çıkış]]<>"Nakit Çıkışları",Nakit_Akis[[#This Row],[Tutar]]>0)),"","Hata") ->  | O40: =SUM(INDEX(Nakit_Akis[Tutar],1):Nakit_Akis[[#This Row],[Tutar]]) -> 36800
B41: =COUNTA(INDEX(Nakit_Akis[Tarih],1):Nakit_Akis[[#This Row],[Tarih]]) -> 19 | C41: 2020-05-15 | D41: =VLOOKUP(WEEKDAY(Nakit_Akis[[#This Row],[Tarih]],2),Gunler[#All],2,0) -> Cuma | E41: =IF(Nakit_Akis[[#This Row],[İşlem Türü]]="Başlangıç Bakiye",WEEKNUM(Nakit_Akis[[#This Row],[Tarih]],2)-1,WEEKNUM(Nakit_Akis[[#This Row],[Tarih]],2)) -> 20 | F41: =IF(Nakit_Akis[[#This Row],[İşlem Türü]]="Başlangıç Bakiye",MONTH(Nakit_Akis[[#This Row],[Tarih]])-1,MONTH(Nakit_Akis[[#This Row],[Tarih]])) -> 5 | G41: =VLOOKUP(J41,Grup[#All],3,0) -> Nakit Çıkışları | H41: =VLOOKUP(J41,Grup[#All],2,0) -> Operasyon | I41: EFT | J41: Elektrik / Su / Doğalgaz | K41: G Elektrik Dağıtım | M41: -1000 | N41: =IF(OR(AND(Nakit_Akis[[#This Row],[Giriş/Çıkış]]="Nakit Çıkışları",Nakit_Akis[[#This Row],[Tutar]]<0),AND(Nakit_Akis[[#This Row],[Giriş/Çıkış]]<>"Nakit Çıkışları",Nakit_Akis[[#This Row],[Tutar]]>0)),"","Hata") ->  | O41: =SUM(INDEX(Nakit_Akis[Tutar],1):Nakit_Akis[[#This Row],[Tutar]]) -> 35800
B42: =COUNTA(INDEX(Nakit_Akis[Tarih],1):Nakit_Akis[[#This Row],[Tarih]]) -> 20 | C42: 2020-05-18 | D42: =VLOOKUP(WEEKDAY(Nakit_Akis[[#This Row],[Tarih]],2),Gunler[#All],2,0) -> Pazartesi | E42: =IF(Nakit_Akis[[#This Row],[İşlem Türü]]="Başlangıç Bakiye",WEEKNUM(Nakit_Akis[[#This Row],[Tarih]],2)-1,WEEKNUM(Nakit_Akis[[#This Row],[Tarih]],2)) -> 21 | F42: =IF(Nakit_Akis[[#This Row],[İşlem Türü]]="Başlangıç Bakiye",MONTH(Nakit_Akis[[#This Row],[Tarih]])-1,MONTH(Nakit_Akis[[#This Row],[Tarih]])) -> 5 | G42: =VLOOKUP(J42,Grup[#All],3,0) -> Nakit Çıkışları | H42: =VLOOKUP(J42,Grup[#All],2,0) -> Operasyon | I42: EFT | J42: Tedarikçi Ödemeleri | K42: E Toptan Ticaret | M42: -7500 | N42: =IF(OR(AND(Nakit_Akis[[#This Row],[Giriş/Çıkış]]="Nakit Çıkışları",Nakit_Akis[[#This Row],[Tutar]]<0),AND(Nakit_Akis[[#This Row],[Giriş/Çıkış]]<>"Nakit Çıkışları",Nakit_Akis[[#This Row],[Tutar]]>0)),"","Hata") ->  | O42: =SUM(INDEX(Nakit_Akis[Tutar],1):Nakit_Akis[[#This Row],[Tutar]]) -> 28300
B43: =COUNTA(INDEX(Nakit_Akis[Tarih],1):Nakit_Akis[[#This Row],[Tarih]]) -> 21 | C43: 2020-05-19 | D43: =VLOOKUP(WEEKDAY(Nakit_Akis[[#This Row],[Tarih]],2),Gunler[#All],2,0) -> Salı | E43: =IF(Nakit_Akis[[#This Row],[İşlem Türü]]="Başlangıç Bakiye",WEEKNUM(Nakit_Akis[[#This Row],[Tarih]],2)-1,WEEKNUM(Nakit_Akis[[#This Row],[Tarih]],2)) -> 21 | F43: =IF(Nakit_Akis[[#This Row],[İşlem Türü]]="Başlangıç Bakiye",MONTH(Nakit_Akis[[#This Row],[Tarih]])-1,MONTH(Nakit_Akis[[#This Row],[Tarih]])) -> 5 | G43: =VLOOKUP(J43,Grup[#All],3,0) -> Nakit Girişleri | H43: =VLOOKUP(J43,Grup[#All],2,0) -> Operasyon | I43: Çek | J43: Tahsilatlar | K43: C Mimarlık | M43: 10000 | N43: =IF(OR(AND(Nakit_Akis[[#This Row],[Giriş/Çıkış]]="Nakit Çıkışları",Nakit_Akis[[#This Row],[Tutar]]<0),AND(Nakit_Akis[[#This Row],[Giriş/Çıkış]]<>"Nakit Çıkışları",Nakit_Akis[[#This Row],[Tutar]]>0)),"","Hata") ->  | O43: =SUM(INDEX(Nakit_Akis[Tutar],1):Nakit_Akis[[#This Row],[Tutar]]) -> 38300
B44: =COUNTA(INDEX(Nakit_Akis[Tarih],1):Nakit_Akis[[#This Row],[Tarih]]) -> 22 | C44: 2020-05-22 | D44: =VLOOKUP(WEEKDAY(Nakit_Akis[[#This Row],[Tarih]],2),Gunler[#All],2,0) -> Cuma | E44: =IF(Nakit_Akis[[#This Row],[İşlem Türü]]="Başlangıç Bakiye",WEEKNUM(Nakit_Akis[[#This Row],[Tarih]],2)-1,WEEKNUM(Nakit_Akis[[#This Row],[Tarih]],2)) -> 21 | F44: =IF(Nakit_Akis[[#This Row],[İşlem Türü]]="Başlangıç Bakiye",MONTH(Nakit_Akis[[#This Row],[Tarih]])-1,MONTH(Nakit_Akis[[#This Row],[Tarih]])) -> 5 | G44: =VLOOKUP(J44,Grup[#All],3,0) -> Nakit Girişleri | H44: =VLOOKUP(J44,Grup[#All],2,0) -> Operasyon | I44: EFT | J44: Tahsilatlar | K44: A Ticaret | M44: 15000 | N44: =IF(OR(AND(Nakit_Akis[[#This Row],[Giriş/Çıkış]]="Nakit Çıkışları",Nakit_Akis[[#This Row],[Tutar]]<0),AND(Nakit_Akis[[#This Row],[Giriş/Çıkış]]<>"Nakit Çıkışları",Nakit_Akis[[#This Row],[Tutar]]>0)),"","Hata") ->  | O44: =SUM(INDEX(Nakit_Akis[Tutar],1):Nakit_Akis[[#This Row],[Tutar]]) -> 53300
B45: =COUNTA(INDEX(Nakit_Akis[Tarih],1):Nakit_Akis[[#This Row],[Tarih]]) -> 23 | C45: 2020-05-22 | D45: =VLOOKUP(WEEKDAY(Nakit_Akis[[#This Row],[Tarih]],2),Gunler[#All],2,0) -> Cuma | E45: =IF(Nakit_Akis[[#This Row],[İşlem Türü]]="Başlangıç Bakiye",WEEKNUM(Nakit_Akis[[#This Row],[Tarih]],2)-1,WEEKNUM(Nakit_Akis[[#This Row],[Tarih]],2)) -> 21 | F45: =IF(Nakit_Akis[[#This Row],[İşlem Türü]]="Başlangıç Bakiye",MONTH(Nakit_Akis[[#This Row],[Tarih]])-1,MONTH(Nakit_Akis[[#This Row],[Tarih]])) -> 5 | G45: =VLOOKUP(J45,Grup[#All],3,0) -> Nakit Çıkışları | H45: =VLOOKUP(J45,Grup[#All],2,0) -> Operasyon | I45: Çek | J45: Tedarikçi Ödemeleri | K45: C Nakliyat | M45: -2500 | N45: =IF(OR(AND(Nakit_Akis[[#This Row],[Giriş/Çıkış]]="Nakit Çıkışları",Nakit_Akis[[#This Row],[Tutar]]<0),AND(Nakit_Akis[[#This Row],[Giriş/Çıkış]]<>"Nakit Çıkışları",Nakit_Akis[[#This Row],[Tutar]]>0)),"","Hata") ->  | O45: =SUM(INDEX(Nakit_Akis[Tutar],1):Nakit_Akis[[#This Row],[Tutar]]) -> 50800
B46: =COUNTA(INDEX(Nakit_Akis[Tarih],1):Nakit_Akis[[#This Row],[Tarih]]) -> 24 | C46: 2020-05-25 | D46: =VLOOKUP(WEEKDAY(Nakit_Akis[[#This Row],[Tarih]],2),Gunler[#All],2,0) -> Pazartesi | E46: =IF(Nakit_Akis[[#This Row],[İşlem Türü]]="Başlangıç Bakiye",WEEKNUM(Nakit_Akis[[#This Row],[Tarih]],2)-1,WEEKNUM(Nakit_Akis[[#This Row],[Tarih]],2)) -> 22 | F46: =IF(Nakit_Akis[[#This Row],[İşlem Türü]]="Başlangıç Bakiye",MONTH(Nakit_Akis[[#This Row],[Tarih]])-1,MONTH(Nakit_Akis[[#This Row],[Tarih]])) -> 5 | G46: =VLOOKUP(J46,Grup[#All],3,0) -> Nakit Girişleri | H46: =VLOOKUP(J46,Grup[#All],2,0) -> Operasyon | I46: Çek | J46: Tahsilatlar | K46: E Restorasyon | M46: 25000 | N46: =IF(OR(AND(Nakit_Akis[[#This Row],[Giriş/Çıkış]]="Nakit Çıkışları",Nakit_Akis[[#This Row],[Tutar]]<0),AND(Nakit_Akis[[#This Row],[Giriş/Çıkış]]<>"Nakit Çıkışları",Nakit_Akis[[#This Row],[Tutar]]>0)),"","Hata") ->  | O46: =SUM(INDEX(Nakit_Akis[Tutar],1):Nakit_Akis[[#This Row],[Tutar]]) -> 75800
B47: =COUNTA(INDEX(Nakit_Akis[Tarih],1):Nakit_Akis[[#This Row],[Tarih]]) -> 25 | C47: 2020-05-26 | D47: =VLOOKUP(WEEKDAY(Nakit_Akis[[#This Row],[Tarih]],2),Gunler[#All],2,0) -> Salı | E47: =IF(Nakit_Akis[[#This Row],[İşlem Türü]]="Başlangıç Bakiye",WEEKNUM(Nakit_Akis[[#This Row],[Tarih]],2)-1,WEEKNUM(Nakit_Akis[[#This Row],[Tarih]],2)) -> 22 | F47: =IF(Nakit_Akis[[#This Row],[İşlem Türü]]="Başlangıç Bakiye",MONTH(Nakit_Akis[[#This Row],[Tarih]])-1,MONTH(Nakit_Akis[[#This Row],[Tarih]])) -> 5 | G47: =VLOOKUP(J47,Grup[#All],3,0) -> Nakit Çıkışları | H47: =VLOOKUP(J47,Grup[#All],2,0) -> Operasyon | I47: EFT | J47: Muhtasar Ödemeleri | K47: Vergi Dairesi | M47: -10000 | N47: =IF(OR(AND(Nakit_Akis[[#This Row],[Giriş/Çıkış]]="Nakit Çıkışları",Nakit_Akis[[#This Row],[Tutar]]<0),AND(Nakit_Akis[[#This Row],[Giriş/Çıkış]]<>"Nakit Çıkışları",Nakit_Akis[[#This Row],[Tutar]]>0)),"","Hata") ->  | O47: =SUM(INDEX(Nakit_Akis[Tutar],1):Nakit_Akis[[#This Row],[Tutar]]) -> 65800
B48: =COUNTA(INDEX(Nakit_Akis[Tarih],1):Nakit_Akis[[#This Row],[Tarih]]) -> 26 | C48: 2020-05-26 | D48: =VLOOKUP(WEEKDAY(Nakit_Akis[[#This Row],[Tarih]],2),Gunler[#All],2,0) -> Salı | E48: =IF(Nakit_Akis[[#This Row],[İşlem Türü]]="Başlangıç Bakiye",WEEKNUM(Nakit_Akis[[#This Row],[Tarih]],2)-1,WEEKNUM(Nakit_Akis[[#This Row],[Tarih]],2)) -> 22 | F48: =IF(Nakit_Akis[[#This Row],[İşlem Türü]]="Başlangıç Bakiye",MONTH(Nakit_Akis[[#This Row],[Tarih]])-1,MONTH(Nakit_Akis[[#This Row],[Tarih]])) -> 5 | G48: =VLOOKUP(J48,Grup[#All],3,0) -> Nakit Çıkışları | H48: =VLOOKUP(J48,Grup[#All],2,0) -> Operasyon | I48: EFT | J48: KDV Ödemeleri | K48: Vergi Dairesi | M48: -22500 | N48: =IF(OR(AND(Nakit_Akis[[#This Row],[Giriş/Çıkış]]="Nakit Çıkışları",Nakit_Akis[[#This Row],[Tutar]]<0),AND(Nakit_Akis[[#This Row],[Giriş/Çıkış]]<>"Nakit Çıkışları",Nakit_Akis[[#This Row],[Tutar]]>0)),"","Hata") ->  | O48: =SUM(INDEX(Nakit_Akis[Tutar],1):Nakit_Akis[[#This Row],[Tutar]]) -> 43300
B49: =COUNTA(INDEX(Nakit_Akis[Tarih],1):Nakit_Akis[[#This Row],[Tarih]]) -> 27 | C49: 2020-05-27 | D49: =VLOOKUP(WEEKDAY(Nakit_Akis[[#This Row],[Tarih]],2),Gunler[#All],2,0) -> Çarşamba | E49: =IF(Nakit_Akis[[#This Row],[İşlem Türü]]="Başlangıç Bakiye",WEEKNUM(Nakit_Akis[[#This Row],[Tarih]],2)-1,WEEKNUM(Nakit_Akis[[#This Row],[Tarih]],2)) -> 22 | F49: =IF(Nakit_Akis[[#This Row],[İşlem Türü]]="Başlangıç Bakiye",MONTH(Nakit_Akis[[#This Row],[Tarih]])-1,MONTH(Nakit_Akis[[#This Row],[Tarih]])) -> 5 | G49: =VLOOKUP(J49,Grup[#All],3,0) -> Nakit Çıkışları | H49: =VLOOKUP(J49,Grup[#All],2,0) -> Operasyon | I49: EFT | J49: Tedarikçi Ödemeleri | K49: E Toptan Ticaret | M49: -7500 | N49: =IF(OR(AND(Nakit_Akis[[#This Row],[Giriş/Çıkış]]="Nakit Çıkışları",Nakit_Akis[[#This Row],[Tutar]]<0),AND(Nakit_Akis[[#This Row],[Giriş/Çıkış]]<>"Nakit Çıkışları",Nakit_Akis[[#This Row],[Tutar]]>0)),"","Hata") ->  | O49: =SUM(INDEX(Nakit_Akis[Tutar],1):Nakit_Akis[[#This Row],[Tutar]]) -> 35800
B50: =COUNTA(INDEX(Nakit_Akis[Tarih],1):Nakit_Akis[[#This Row],[Tarih]]) -> 28 | C50: 2020-05-28 | D50: =VLOOKUP(WEEKDAY(Nakit_Akis[[#This Row],[Tarih]],2),Gunler[#All],2,0) -> Perşembe | E50: =IF(Nakit_Akis[[#This Row],[İşlem Türü]]="Başlangıç Bakiye",WEEKNUM(Nakit_Akis[[#This Row],[Tarih]],2)-1,WEEKNUM(Nakit_Akis[[#This Row],[Tarih]],2)) -> 22 | F50: =IF(Nakit_Akis[[#This Row],[İşlem Türü]]="Başlangıç Bakiye",MONTH(Nakit_Akis[[#This Row],[Tarih]])-1,MONTH(Nakit_Akis[[#This Row],[Tarih]])) -> 5 | G50: =VLOOKUP(J50,Grup[#All],3,0) -> Nakit Girişleri | H50: =VLOOKUP(J50,Grup[#All],2,0) -> Operasyon | I50: EFT | J50: Tahsilatlar | K50: F Mühendislik | M50: 15000 | N50: =IF(OR(AND(Nakit_Akis[[#This Row],[Giriş/Çıkış]]="Nakit Çıkışları",Nakit_Akis[[#This Row],[Tutar]]<0),AND(Nakit_Akis[[#This Row],[Giriş/Çıkış]]<>"Nakit Çıkışları",Nakit_Akis[[#This Row],[Tutar]]>0)),"","Hata") ->  | O50: =SUM(INDEX(Nakit_Akis[Tutar],1):Nakit_Akis[[#This Row],[Tutar]]) -> 50800
B51: =COUNTA(INDEX(Nakit_Akis[Tarih],1):Nakit_Akis[[#This Row],[Tarih]]) -> 29 | C51: 2020-05-28 | D51: =VLOOKUP(WEEKDAY(Nakit_Akis[[#This Row],[Tarih]],2),Gunler[#All],2,0) -> Perşembe | E51: =IF(Nakit_Akis[[#This Row],[İşlem Türü]]="Başlangıç Bakiye",WEEKNUM(Nakit_Akis[[#This Row],[Tarih]],2)-1,WEEKNUM(Nakit_Akis[[#This Row],[Tarih]],2)) -> 22 | F51: =IF(Nakit_Akis[[#This Row],[İşlem Türü]]="Başlangıç Bakiye",MONTH(Nakit_Akis[[#This Row],[Tarih]])-1,MONTH(Nakit_Akis[[#This Row],[Tarih]])) -> 5 | G51: =VLOOKUP(J51,Grup[#All],3,0) -> Nakit Çıkışları | H51: =VLOOKUP(J51,Grup[#All],2,0) -> Operasyon | I51: Çek | J51: Tedarikçi Ödemeleri | K51: D Nalburiye | M51: -2500 | N51: =IF(OR(AND(Nakit_Akis[[#This Row],[Giriş/Çıkış]]="Nakit Çıkışları",Nakit_Akis[[#This Row],[Tutar]]<0),AND(Nakit_Akis[[#This Row],[Giriş/Çıkış]]<>"Nakit Çıkışları",Nakit_Akis[[#This Row],[Tutar]]>0)),"","Hata") ->  | O51: =SUM(INDEX(Nakit_Akis[Tutar],1):Nakit_Akis[[#This Row],[Tutar]]) -> 48300
B52: =COUNTA(INDEX(Nakit_Akis[Tarih],1):Nakit_Akis[[#This Row],[Tarih]]) -> 30 | C52: 2020-05-29 | D52: =VLOOKUP(WEEKDAY(Nakit_Akis[[#This Row],[Tarih]],2),Gunler[#All],2,0) -> Cuma | E52: =IF(Nakit_Akis[[#This Row],[İşlem Türü]]="Başlangıç Bakiye",WEEKNUM(Nakit_Akis[[#This Row],[Tarih]],2)-1,WEEKNUM(Nakit_Akis[[#This Row],[Tarih]],2)) -> 22 | F52: =IF(Nakit_Akis[[#This Row],[İşlem Türü]]="Başlangıç Bakiye",MONTH(Nakit_Akis[[#This Row],[Tarih]])-1,MONTH(Nakit_Akis[[#This Row],[Tarih]])) -> 5 | G52: =VLOOKUP(J52,Grup[#All],3,0) -> Nakit Girişleri | H52: =VLOOKUP(J52,Grup[#All],2,0) -> Operasyon | I52: Kredi Kartı | J52: Tahsilatlar | K52: C Mimarlık | M52: 15000 | N52: =IF(OR(AND(Nakit_Akis[[#This Row],[Giriş/Çıkış]]="Nakit Çıkışları",Nakit_Akis[[#This Row],[Tutar]]<0),AND(Nakit_Akis[[#This Row],[Giriş/Çıkış]]<>"Nakit Çıkışları",Nakit_Akis[[#This Row],[Tutar]]>0)),"","Hata") ->  | O52: =SUM(INDEX(Nakit_Akis[Tutar],1):Nakit_Akis[[#This Row],[Tutar]]) -> 63300
B53: =COUNTA(INDEX(Nakit_Akis[Tarih],1):Nakit_Akis[[#This Row],[Tarih]]) -> 31 | C53: 2020-05-29 | D53: =VLOOKUP(WEEKDAY(Nakit_Akis[[#This Row],[Tarih]],2),Gunler[#All],2,0) -> Cuma | E53: =IF(Nakit_Akis[[#This Row],[İşlem Türü]]="Başlangıç Bakiye",WEEKNUM(Nakit_Akis[[#This Row],[Tarih]],2)-1,WEEKNUM(Nakit_Akis[[#This Row],[Tarih]],2)) -> 22 | F53: =IF(Nakit_Akis[[#This Row],[İşlem Türü]]="Başlangıç Bakiye",MONTH(Nakit_Akis[[#This Row],[Tarih]])-1,MONTH(Nakit_Akis[[#This Row],[Tarih]])) -> 5 | G53: =VLOOKUP(J53,Grup[#All],3,0) -> Nakit Çıkışları | H53: =VLOOKUP(J53,Grup[#All],2,0) -> Operasyon | I53: EFT | J53: SGK Ödemeleri | K53: SGK | M53: -2000 | N53: =IF(OR(AND(Nakit_Akis[[#This Row],[Giriş/Çıkış]]="Nakit Çıkışları",Nakit_Akis[[#This Row],[Tutar]]<0),AND(Nakit_Akis[[#This Row],[Giriş/Çıkış]]<>"Nakit Çıkışları",Nakit_Akis[[#This Row],[Tutar]]>0)),"","Hata") ->  | O53: =SUM(INDEX(Nakit_Akis[Tutar],1):Nakit_Akis[[#This Row],[Tutar]]) -> 61300
B54: =COUNTA(INDEX(Nakit_Akis[Tarih],1):Nakit_Akis[[#This Row],[Tarih]]) -> 32 | C54: 2020-05-29 | D54: =VLOOKUP(WEEKDAY(Nakit_Akis[[#This Row],[Tarih]],2),Gunler[#All],2,0) -> Cuma | E54: =IF(Nakit_Akis[[#This Row],[İşlem Türü]]="Başlangıç Bakiye",WEEKNUM(Nakit_Akis[[#This Row],[Tarih]],2)-1,WEEKNUM(Nakit_Akis[[#This Row],[Tarih]],2)) -> 22 | F54: =IF(Nakit_Akis[[#This Row],[İşlem Türü]]="Başlangıç Bakiye",MONTH(Nakit_Akis[[#This Row],[Tarih]])-1,MONTH(Nakit_Akis[[#This Row],[Tarih]])) -> 5 | G54: =VLOOKUP(J54,Grup[#All],3,0) -> Nakit Çıkışları | H54: =VLOOKUP(J54,Grup[#All],2,0) -> Finansman | I54: EFT | J54: Faiz Ödemeleri | K54: Vergi Dairesi | M54: -3000 | N54: =IF(OR(AND(Nakit_Akis[[#This Row],[Giriş/Çıkış]]="Nakit Çıkışları",Nakit_Akis[[#This Row],[Tutar]]<0),AND(Nakit_Akis[[#This Row],[Giriş/Çıkış]]<>"Nakit Çıkışları",Nakit_Akis[[#This Row],[Tutar]]>0)),"","Hata") ->  | O54: =SUM(INDEX(Nakit_Akis[Tutar],1):Nakit_Akis[[#This Row],[Tutar]]) -> 58300
B55: =COUNTA(INDEX(Nakit_Akis[Tarih],1):Nakit_Akis[[#This Row],[Tarih]]) -> 33 | C55: 2020-05-29 | D55: =VLOOKUP(WEEKDAY(Nakit_Akis[[#This Row],[Tarih]],2),Gunler[#All],2,0) -> Cuma | E55: =IF(Nakit_Akis[[#This Row],[İşlem Türü]]="Başlangıç Bakiye",WEEKNUM(Nakit_Akis[[#This Row],[Tarih]],2)-1,WEEKNUM(Nakit_Akis[[#This Row],[Tarih]],2)) -> 22 | F55: =IF(Nakit_Akis[[#This Row],[İşlem Türü]]="Başlangıç Bakiye",MONTH(Nakit_Akis[[#This Row],[Tarih]])-1,MONTH(Nakit_Akis[[#This Row],[Tarih]])) -> 5 | G55: =VLOOKUP(J55,Grup[#All],3,0) -> Nakit Çıkışları | H55: =VLOOKUP(J55,Grup[#All],2,0) -> Finansman | I55: EFT | J55: Kredi Geri Ödemeleri | K55: X Bank | M55: -20000 | N55: =IF(OR(AND(Nakit_Akis[[#This Row],[Giriş/Çıkış]]="Nakit Çıkışları",Nakit_Akis[[#This Row],[Tutar]]<0),AND(Nakit_Akis[[#This Row],[Giriş/Çıkış]]<>"Nakit Çıkışları",Nakit_Akis[[#This Row],[Tutar]]>0)),"","Hata") ->  | O55: =SUM(INDEX(Nakit_Akis[Tutar],1):Nakit_Akis[[#This Row],[Tutar]]) -> 38300
B56: =COUNTA(INDEX(Nakit_Akis[Tarih],1):Nakit_Akis[[#This Row],[Tarih]]) -> 34 | C56: 2020-06-01 | D56: =VLOOKUP(WEEKDAY(Nakit_Akis[[#This Row],[Tarih]],2),Gunler[#All],2,0) -> Pazartesi | E56: =IF(Nakit_Akis[[#This Row],[İşlem Türü]]="Başlangıç Bakiye",WEEKNUM(Nakit_Akis[[#This Row],[Tarih]],2)-1,WEEKNUM(Nakit_Akis[[#This Row],[Tarih]],2)) -> 23 | F56: =IF(Nakit_Akis[[#This Row],[İşlem Türü]]="Başlangıç Bakiye",MONTH(Nakit_Akis[[#This Row],[Tarih]])-1,MONTH(Nakit_Akis[[#This Row],[Tarih]])) -> 6 | G56: =VLOOKUP(J56,Grup[#All],3,0) -> Nakit Çıkışları | H56: =VLOOKUP(J56,Grup[#All],2,0) -> Operasyon | I56: EFT | J56: Tedarikçi Ödemeleri | K56: A Madencilik | M56: -12500 | N56: =IF(OR(AND(Nakit_Akis[[#This Row],[Giriş/Çıkış]]="Nakit Çıkışları",Nakit_Akis[[#This Row],[Tutar]]<0),AND(Nakit_Akis[[#This Row],[Giriş/Çıkış]]<>"Nakit Çıkışları",Nakit_Akis[[#This Row],[Tutar]]>0)),"","Hata") ->  | O56: =SUM(INDEX(Nakit_Akis[Tutar],1):Nakit_Akis[[#This Row],[Tutar]]) -> 25800
B57: =COUNTA(INDEX(Nakit_Akis[Tarih],1):Nakit_Akis[[#This Row],[Tarih]]) -> 35 | C57: 2020-06-02 | D57: =VLOOKUP(WEEKDAY(Nakit_Akis[[#This Row],[Tarih]],2),Gunler[#All],2,0) -> Salı | E57: =IF(Nakit_Akis[[#This Row],[İşlem Türü]]="Başlangıç Bakiye",WEEKNUM(Nakit_Akis[[#This Row],[Tarih]],2)-1,WEEKNUM(Nakit_Akis[[#This Row],[Tarih]],2)) -> 23 | F57: =IF(Nakit_Akis[[#This Row],[İşlem Türü]]="Başlangıç Bakiye",MONTH(Nakit_Akis[[#This Row],[Tarih]])-1,MONTH(Nakit_Akis[[#This Row],[Tarih]])) -> 6 | G57: =VLOOKUP(J57,Grup[#All],3,0) -> Nakit Girişleri | H57: =VLOOKUP(J57,Grup[#All],2,0) -> Finasman | I57: EFT | J57: Kredi Kullanımları | K57: X Bank | M57: 35000 | N57: =IF(OR(AND(Nakit_Akis[[#This Row],[Giriş/Çıkış]]="Nakit Çıkışları",Nakit_Akis[[#This Row],[Tutar]]<0),AND(Nakit_Akis[[#This Row],[Giriş/Çıkış]]<>"Nakit Çıkışları",Nakit_Akis[[#This Row],[Tutar]]>0)),"","Hata") ->  | O57: =SUM(INDEX(Nakit_Akis[Tutar],1):Nakit_Akis[[#This Row],[Tutar]]) -> 60800
B58: =COUNTA(INDEX(Nakit_Akis[Tarih],1):Nakit_Akis[[#This Row],[Tarih]]) -> 36 | C58: 2020-06-03 | D58: =VLOOKUP(WEEKDAY(Nakit_Akis[[#This Row],[Tarih]],2),Gunler[#All],2,0) -> Çarşamba | E58: =IF(Nakit_Akis[[#This Row],[İşlem Türü]]="Başlangıç Bakiye",WEEKNUM(Nakit_Akis[[#This Row],[Tarih]],2)-1,WEEKNUM(Nakit_Akis[[#This Row],[Tarih]],2)) -> 23 | F58: =IF(Nakit_Akis[[#This Row],[İşlem Türü]]="Başlangıç Bakiye",MONTH(Nakit_Akis[[#This Row],[Tarih]])-1,MONTH(Nakit_Akis[[#This Row],[Tarih]])) -> 6 | G58: =VLOOKUP(J58,Grup[#All],3,0) -> Nakit Girişleri | H58: =VLOOKUP(J58,Grup[#All],2,0) -> Operasyon | I58: Kredi Kartı | J58: Tahsilatlar | K58: C Mimarlık | M58: 30000 | N58: =IF(OR(AND(Nakit_Akis[[#This Row],[Giriş/Çıkış]]="Nakit Çıkışları",Nakit_Akis[[#This Row],[Tutar]]<0),AND(Nakit_Akis[[#This Row],[Giriş/Çıkış]]<>"Nakit Çıkışları",Nakit_Akis[[#This Row],[Tutar]]>0)),"","Hata") ->  | O58: =SUM(INDEX(Nakit_Akis[Tutar],1):Nakit_Akis[[#This Row],[Tutar]]) -> 90800
B59: =COUNTA(INDEX(Nakit_Akis[Tarih],1):Nakit_Akis[[#This Row],[Tarih]]) -> 37 | C59: 2020-06-03 | D59: =VLOOKUP(WEEKDAY(Nakit_Akis[[#This Row],[Tarih]],2),Gunler[#All],2,0) -> Çarşamba | E59: =IF(Nakit_Akis[[#This Row],[İşlem Türü]]="Başlangıç Bakiye",WEEKNUM(Nakit_Akis[[#This Row],[Tarih]],2)-1,WEEKNUM(Nakit_Akis[[#This Row],[Tarih]],2)) -> 23 | F59: =IF(Nakit_Akis[[#This Row],[İşlem Türü]]="Başlangıç Bakiye",MONTH(Nakit_Akis[[#This Row],[Tarih]])-1,MONTH(Nakit_Akis[[#This Row],[Tarih]])) -> 6 | G59: =VLOOKUP(J59,Grup[#All],3,0) -> Nakit Girişleri | H59: =VLOOKUP(J59,Grup[#All],2,0) -> Operasyon | I59: EFT | J59: Tahsilatlar | K59: C Mimarlık | M59: 10000 | N59: =IF(OR(AND(Nakit_Akis[[#This Row],[Giriş/Çıkış]]="Nakit Çıkışları",Nakit_Akis[[#This Row],[Tutar]]<0),AND(Nakit_Akis[[#This Row],[Giriş/Çıkış]]<>"Nakit Çıkışları",Nakit_Akis[[#This Row],[Tutar]]>0)),"","Hata") ->  | O59: =SUM(INDEX(Nakit_Akis[Tutar],1):Nakit_Akis[[#This Row],[Tutar]]) -> 100800
B60: =COUNTA(INDEX(Nakit_Akis[Tarih],1):Nakit_Akis[[#This Row],[Tarih]]) -> 38 | C60: 2020-06-03 | D60: =VLOOKUP(WEEKDAY(Nakit_Akis[[#This Row],[Tarih]],2),Gunler[#All],2,0) -> Çarşamba | E60: =IF(Nakit_Akis[[#This Row],[İşlem Türü]]="Başlangıç Bakiye",WEEKNUM(Nakit_Akis[[#This Row],[Tarih]],2)-1,WEEKNUM(Nakit_Akis[[#This Row],[Tarih]],2)) -> 23 | F60: =IF(Nakit_Akis[[#This Row],[İşlem Türü]]="Başlangıç Bakiye",MONTH(Nakit_Akis[[#This Row],[Tarih]])-1,MONTH(Nakit_Akis[[#This Row],[Tarih]])) -> 6 | G60: =VLOOKUP(J60,Grup[#All],3,0) -> Nakit Çıkışları | H60: =VLOOKUP(J60,Grup[#All],2,0) -> Operasyon | I60: EFT | J60: Tedarikçi Ödemeleri | K60: C Nakliyay | M60: -25000 | N60: =IF(OR(AND(Nakit_Akis[[#This Row],[Giriş/Çıkış]]="Nakit Çıkışları",Nakit_Akis[[#This Row],[Tutar]]<0),AND(Nakit_Akis[[#This Row],[Giriş/Çıkış]]<>"Nakit Çıkışları",Nakit_Akis[[#This Row],[Tutar]]>0)),"","Hata") ->  | O60: =SUM(INDEX(Nakit_Akis[Tutar],1):Nakit_Akis[[#This Row],[Tutar]]) -> 75800
B61: =COUNTA(INDEX(Nakit_Akis[Tarih],1):Nakit_Akis[[#This Row],[Tarih]]) -> 39 | C61: 2020-06-04 | D61: =VLOOKUP(WEEKDAY(Nakit_Akis[[#This Row],[Tarih]],2),Gunler[#All],2,0) -> Perşembe | E61: =IF(Nakit_Akis[[#This Row],[İşlem Türü]]="Başlangıç Bakiye",WEEKNUM(Nakit_Akis[[#This Row],[Tarih]],2)-1,WEEKNUM(Nakit_Akis[[#This Row],[Tarih]],2)) -> 23 | F61: =IF(Nakit_Akis[[#This Row],[İşlem Türü]]="Başlangıç Bakiye",MONTH(Nakit_Akis[[#This Row],[Tarih]])-1,MONTH(Nakit_Akis[[#This Row],[Tarih]])) -> 6 | G61: =VLOOKUP(J61,Grup[#All],3,0) -> Nakit Girişleri | H61: =VLOOKUP(J61,Grup[#All],2,0) -> Operasyon | I61: EFT | J61: Tahsilatlar | K61: E Restorasyon | M61: 30000 | N61: =IF(OR(AND(Nakit_Akis[[#This Row],[Giriş/Çıkış]]="Nakit Çıkışları",Nakit_Akis[[#This Row],[Tutar]]<0),AND(Nakit_Akis[[#This Row],[Giriş/Çıkış]]<>"Nakit Çıkışları",Nakit_Akis[[#This Row],[Tutar]]>0)),"","Hata") ->  | O61: =SUM(INDEX(Nakit_Akis[Tutar],1):Nakit_Akis[[#This Row],[Tutar]]) -> 105800
B62: =COUNTA(INDEX(Nakit_Akis[Tarih],1):Nakit_Akis[[#This Row],[Tarih]]) -> 40 | C62: 2020-06-04 | D62: =VLOOKUP(WEEKDAY(Nakit_Akis[[#This Row],[Tarih]],2),Gunler[#All],2,0) -> Perşembe | E62: =IF(Nakit_Akis[[#This Row],[İşlem Türü]]="Başlangıç Bakiye",WEEKNUM(Nakit_Akis[[#This Row],[Tarih]],2)-1,WEEKNUM(Nakit_Akis[[#This Row],[Tarih]],2)) -> 23 | F62: =IF(Nakit_Akis[[#This Row],[İşlem Türü]]="Başlangıç Bakiye",MONTH(Nakit_Akis[[#This Row],[Tarih]])-1,MONTH(Nakit_Akis[[#This Row],[Tarih]])) -> 6 | G62: =VLOOKUP(J62,Grup[#All],3,0) -> Nakit Çıkışları | H62: =VLOOKUP(J62,Grup[#All],2,0) -> Operasyon | I62: EFT | J62: Tedarikçi Ödemeleri | K62: D Nalburiye | M62: -10000 | N62: =IF(OR(AND(Nakit_Akis[[#This Row],[Giriş/Çıkış]]="Nakit Çıkışları",Nakit_Akis[[#This Row],[Tutar]]<0),AND(Nakit_Akis[[#This Row],[Giriş/Çıkış]]<>"Nakit Çıkışları",Nakit_Akis[[#This Row],[Tutar]]>0)),"","Hata") ->  | O62: =SUM(INDEX(Nakit_Akis[Tutar],1):Nakit_Akis[[#This Row],[Tutar]]) -> 95800
B63: =COUNTA(INDEX(Nakit_Akis[Tarih],1):Nakit_Akis[[#This Row],[Tarih]]) -> 41 | C63: 2020-06-05 | D63: =VLOOKUP(WEEKDAY(Nakit_Akis[[#This Row],[Tarih]],2),Gunler[#All],2,0) -> Cuma | E63: =IF(Nakit_Akis[[#This Row],[İşlem Türü]]="Başlangıç Bakiye",WEEKNUM(Nakit_Akis[[#This Row],[Tarih]],2)-1,WEEKNUM(Nakit_Akis[[#This Row],[Tarih]],2)) -> 23 | F63: =IF(Nakit_Akis[[#This Row],[İşlem Türü]]="Başlangıç Bakiye",MONTH(Nakit_Akis[[#This Row],[Tarih]])-1,MONTH(Nakit_Akis[[#This Row],[Tarih]])) -> 6 | G63: =VLOOKUP(J63,Grup[#All],3,0) -> Nakit Çıkışları | H63: =VLOOKUP(J63,Grup[#All],2,0) -> Operasyon | I63: EFT | J63: Kira Ödemeleri | K63: Vergi Dairesi | M63: -10000 | N63: =IF(OR(AND(Nakit_Akis[[#This Row],[Giriş/Çıkış]]="Nakit Çıkışları",Nakit_Akis[[#This Row],[Tutar]]<0),AND(Nakit_Akis[[#This Row],[Giriş/Çıkış]]<>"Nakit Çıkışları",Nakit_Akis[[#This Row],[Tutar]]>0)),"","Hata") ->  | O63: =SUM(INDEX(Nakit_Akis[Tutar],1):Nakit_Akis[[#This Row],[Tutar]]) -> 85800
B64: =COUNTA(INDEX(Nakit_Akis[Tarih],1):Nakit_Akis[[#This Row],[Tarih]]) -> 42 | C64: 2020-06-05 | D64: =VLOOKUP(WEEKDAY(Nakit_Akis[[#This Row],[Tarih]],2),Gunler[#All],2,0) -> Cuma | E64: =IF(Nakit_Akis[[#This Row],[İşlem Türü]]="Başlangıç Bakiye",WEEKNUM(Nakit_Akis[[#This Row],[Tarih]],2)-1,WEEKNUM(Nakit_Akis[[#This Row],[Tarih]],2)) -> 23 | F64: =IF(Nakit_Akis[[#This Row],[İşlem Türü]]="Başlangıç Bakiye",MONTH(Nakit_Akis[[#This Row],[Tarih]])-1,MONTH(Nakit_Akis[[#This Row],[Tarih]])) -> 6 | G64: =VLOOKUP(J64,Grup[#All],3,0) -> Nakit Çıkışları | H64: =VLOOKUP(J64,Grup[#All],2,0) -> Operasyon | I64: EFT | J64: Personel Ücretleri | K64: Personel | M64: -92500 | N64: =IF(OR(AND(Nakit_Akis[[#This Row],[Giriş/Çıkış]]="Nakit Çıkışları",Nakit_Akis[[#This Row],[Tutar]]<0),AND(Nakit_Akis[[#This Row],[Giriş/Çıkış]]<>"Nakit Çıkışları",Nakit_Akis[[#This Row],[Tutar]]>0)),"","Hata") ->  | O64: =SUM(INDEX(Nakit_Akis[Tutar],1):Nakit_Akis[[#This Row],[Tutar]]) -> -6700
B65: =COUNTA(INDEX(Nakit_Akis[Tarih],1):Nakit_Akis[[#This Row],[Tarih]]) -> 43 | C65: 2020-06-09 | D65: =VLOOKUP(WEEKDAY(Nakit_Akis[[#This Row],[Tarih]],2),Gunler[#All],2,0) -> Salı | E65: =IF(Nakit_Akis[[#This Row],[İşlem Türü]]="Başlangıç Bakiye",WEEKNUM(Nakit_Akis[[#This Row],[Tarih]],2)-1,WEEKNUM(Nakit_Akis[[#This Row],[Tarih]],2)) -> 24 | F65: =IF(Nakit_Akis[[#This Row],[İşlem Türü]]="Başlangıç Bakiye",MONTH(Nakit_Akis[[#This Row],[Tarih]])-1,MONTH(Nakit_Akis[[#This Row],[Tarih]])) -> 6 | G65: =VLOOKUP(J65,Grup[#All],3,0) -> Nakit Girişleri | H65: =VLOOKUP(J65,Grup[#All],2,0) -> Operasyon | I65: EFT | J65: Tahsilatlar | K65: B İnşaat | M65: 15000 | N65: =IF(OR(AND(Nakit_Akis[[#This Row],[Giriş/Çıkış]]="Nakit Çıkışları",Nakit_Akis[[#This Row],[Tutar]]<0),AND(Nakit_Akis[[#This Row],[Giriş/Çıkış]]<>"Nakit Çıkışları",Nakit_Akis[[#This Row],[Tutar]]>0)),"","Hata") ->  | O65: =SUM(INDEX(Nakit_Akis[Tutar],1):Nakit_Akis[[#This Row],[Tutar]]) -> 8300
B66: =COUNTA(INDEX(Nakit_Akis[Tarih],1):Nakit_Akis[[#This Row],[Tarih]]) -> 44 | C66: 2020-06-12 | D66: =VLOOKUP(WEEKDAY(Nakit_Akis[[#This Row],[Tarih]],2),Gunler[#All],2,0) -> Cuma | E66: =IF(Nakit_Akis[[#This Row],[İşlem Türü]]="Başlangıç Bakiye",WEEKNUM(Nakit_Akis[[#This Row],[Tarih]],2)-1,WEEKNUM(Nakit_Akis[[#This Row],[Tarih]],2)) -> 24 | F66: =IF(Nakit_Akis[[#This Row],[İşlem Türü]]="Başlangıç Bakiye",MONTH(Nakit_Akis[[#This Row],[Tarih]])-1,MONTH(Nakit_Akis[[#This Row],[Tarih]])) -> 6 | G66: =VLOOKUP(J66,Grup[#All],3,0) -> Nakit Girişleri | H66: =VLOOKUP(J66,Grup[#All],2,0) -> Operasyon | I66: Çek | J66: Tahsilatlar | K66: A Ticaret | M66: 15000 | N66: =IF(OR(AND(Nakit_Akis[[#This Row],[Giriş/Çıkış]]="Nakit Çıkışları",Nakit_Akis[[#This Row],[Tutar]]<0),AND(Nakit_Akis[[#This Row],[Giriş/Çıkış]]<>"Nakit Çıkışları",Nakit_Akis[[#This Row],[Tutar]]>0)),"","Hata") ->  | O66: =SUM(INDEX(Nakit_Akis[Tutar],1):Nakit_Akis[[#This Row],[Tutar]]) -> 23300
B67: =COUNTA(INDEX(Nakit_Akis[Tarih],1):Nakit_Akis[[#This Row],[Tarih]]) -> 45 | C67: 2020-06-15 | D67: =VLOOKUP(WEEKDAY(Nakit_Akis[[#This Row],[Tarih]],2),Gunler[#All],2,0) -> Pazartesi | E67: =IF(Nakit_Akis[[#This Row],[İşlem Türü]]="Başlangıç Bakiye",WEEKNUM(Nakit_Akis[[#This Row],[Tarih]],2)-1,WEEKNUM(Nakit_Akis[[#This Row],[Tarih]],2)) -> 25 | F67: =IF(Nakit_Akis[[#This Row],[İşlem Türü]]="Başlangıç Bakiye",MONTH(Nakit_Akis[[#This Row],[Tarih]])-1,MONTH(Nakit_Akis[[#This Row],[Tarih]])) -> 6 | G67: =VLOOKUP(J67,Grup[#All],3,0) -> Nakit Girişleri | H67: =VLOOKUP(J67,Grup[#All],2,0) -> Operasyon | I67: EFT | J67: Tahsilatlar | K67: C Mimarlık | M67: 25000 | N67: =IF(OR(AND(Nakit_Akis[[#This Row],[Giriş/Çıkış]]="Nakit Çıkışları",Nakit_Akis[[#This Row],[Tutar]]<0),AND(Nakit_Akis[[#This Row],[Giriş/Çıkış]]<>"Nakit Çıkışları",Nakit_Akis[[#This Row],[Tutar]]>0)),"","Hata") ->  | O67: =SUM(INDEX(Nakit_Akis[Tutar],1):Nakit_Akis[[#This Row],[Tutar]]) -> 48300
B68: =COUNTA(INDEX(Nakit_Akis[Tarih],1):Nakit_Akis[[#This Row],[Tarih]]) -> 46 | C68: 2020-06-15 | D68: =VLOOKUP(WEEKDAY(Nakit_Akis[[#This Row],[Tarih]],2),Gunler[#All],2,0) -> Pazartesi | E68: =IF(Nakit_Akis[[#This Row],[İşlem Türü]]="Başlangıç Bakiye",WEEKNUM(Nakit_Akis[[#This Row],[Tarih]],2)-1,WEEKNUM(Nakit_Akis[[#This Row],[Tarih]],2)) -> 25 | F68: =IF(Nakit_Akis[[#This Row],[İşlem Türü]]="Başlangıç Bakiye",MONTH(Nakit_Akis[[#This Row],[Tarih]])-1,MONTH(Nakit_Akis[[#This Row],[Tarih]])) -> 6 | G68: =VLOOKUP(J68,Grup[#All],3,0) -> Nakit Girişleri | H68: =VLOOKUP(J68,Grup[#All],2,0) -> Yatırım | I68: EFT | J68: Demirbaş Satış Tahsilatı | M68: 15000 | N68: =IF(OR(AND(Nakit_Akis[[#This Row],[Giriş/Çıkış]]="Nakit Çıkışları",Nakit_Akis[[#This Row],[Tutar]]<0),AND(Nakit_Akis[[#This Row],[Giriş/Çıkış]]<>"Nakit Çıkışları",Nakit_Akis[[#This Row],[Tutar]]>0)),"","Hata") ->  | O68: =SUM(INDEX(Nakit_Akis[Tutar],1):Nakit_Akis[[#This Row],[Tutar]]) -> 63300
B69: =COUNTA(INDEX(Nakit_Akis[Tarih],1):Nakit_Akis[[#This Row],[Tarih]]) -> 47 | C69: 2020-06-15 | D69: =VLOOKUP(WEEKDAY(Nakit_Akis[[#This Row],[Tarih]],2),Gunler[#All],2,0) -> Pazartesi | E69: =IF(Nakit_Akis[[#This Row],[İşlem Türü]]="Başlangıç Bakiye",WEEKNUM(Nakit_Akis[[#This Row],[Tarih]],2)-1,WEEKNUM(Nakit_Akis[[#This Row],[Tarih]],2)) -> 25 | F69: =IF(Nakit_Akis[[#This Row],[İşlem Türü]]="Başlangıç Bakiye",MONTH(Nakit_Akis[[#This Row],[Tarih]])-1,MONTH(Nakit_Akis[[#This Row],[Tarih]])) -> 6 | G69: =VLOOKUP(J69,Grup[#All],3,0) -> Nakit Çıkışları | H69: =VLOOKUP(J69,Grup[#All],2,0) -> Operasyon | I69: EFT | J69: Elektrik / Su / Doğalgaz | K69: D Doğalgaz Dağıtım | M69: -100 | N69: =IF(OR(AND(Nakit_Akis[[#This Row],[Giriş/Çıkış]]="Nakit Çıkışları",Nakit_Akis[[#This Row],[Tutar]]<0),AND(Nakit_Akis[[#This Row],[Giriş/Çıkış]]<>"Nakit Çıkışları",Nakit_Akis[[#This Row],[Tutar]]>0)),"","Hata") ->  | O69: =SUM(INDEX(Nakit_Akis[Tutar],1):Nakit_Akis[[#This Row],[Tutar]]) -> 63200
B70: =COUNTA(INDEX(Nakit_Akis[Tarih],1):Nakit_Akis[[#This Row],[Tarih]]) -> 48 | C70: 2020-06-15 | D70: =VLOOKUP(WEEKDAY(Nakit_Akis[[#This Row],[Tarih]],2),Gunler[#All],2,0) -> Pazartesi | E70: =IF(Nakit_Akis[[#This Row],[İşlem Türü]]="Başlangıç Bakiye",WEEKNUM(Nakit_Akis[[#This Row],[Tarih]],2)-1,WEEKNUM(Nakit_Akis[[#This Row],[Tarih]],2)) -> 25 | F70: =IF(Nakit_Akis[[#This Row],[İşlem Türü]]="Başlangıç Bakiye",MONTH(Nakit_Akis[[#This Row],[Tarih]])-1,MONTH(Nakit_Akis[[#This Row],[Tarih]])) -> 6 | G70: =VLOOKUP(J70,Grup[#All],3,0) -> Nakit Çıkışları | H70: =VLOOKUP(J70,Grup[#All],2,0) -> Operasyon | I70: EFT | J70: Elektrik / Su / Doğalgaz | K70: S Su ve Kanalizasyon | M70: -300 | N70: =IF(OR(AND(Nakit_Akis[[#This Row],[Giriş/Çıkış]]="Nakit Çıkışları",Nakit_Akis[[#This Row],[Tutar]]<0),AND(Nakit_Akis[[#This Row],[Giriş/Çıkış]]<>"Nakit Çıkışları",Nakit_Akis[[#This Row],[Tutar]]>0)),"","Hata") ->  | O70: =SUM(INDEX(Nakit_Akis[Tutar],1):Nakit_Akis[[#This Row],[Tutar]]) -> 62900
B71: =COUNTA(INDEX(Nakit_Akis[Tarih],1):Nakit_Akis[[#This Row],[Tarih]]) -> 49 | C71: 2020-06-15 | D71: =VLOOKUP(WEEKDAY(Nakit_Akis[[#This Row],[Tarih]],2),Gunler[#All],2,0) -> Pazartesi | E71: =IF(Nakit_Akis[[#This Row],[İşlem Türü]]="Başlangıç Bakiye",WEEKNUM(Nakit_Akis[[#This Row],[Tarih]],2)-1,WEEKNUM(Nakit_Akis[[#This Row],[Tarih]],2)) -> 25 | F71: =IF(Nakit_Akis[[#This Row],[İşlem Türü]]="Başlangıç Bakiye",MONTH(Nakit_Akis[[#This Row],[Tarih]])-1,MONTH(Nakit_Akis[[#This Row],[Tarih]])) -> 6 | G71: =VLOOKUP(J71,Grup[#All],3,0) -> Nakit Çıkışları | H71: =VLOOKUP(J71,Grup[#All],2,0) -> Operasyon | I71: EFT | J71: Sigorta Primleri | K71: S Sigorta Acentası | M71: -300 | N71: =IF(OR(AND(Nakit_Akis[[#This Row],[Giriş/Çıkış]]="Nakit Çıkışları",Nakit_Akis[[#This Row],[Tutar]]<0),AND(Nakit_Akis[[#This Row],[Giriş/Çıkış]]<>"Nakit Çıkışları",Nakit_Akis[[#This Row],[Tutar]]>0)),"","Hata") ->  | O71: =SUM(INDEX(Nakit_Akis[Tutar],1):Nakit_Akis[[#This Row],[Tutar]]) -> 62600
B72: =COUNTA(INDEX(Nakit_Akis[Tarih],1):Nakit_Akis[[#This Row],[Tarih]]) -> 50 | C72: 2020-06-15 | D72: =VLOOKUP(WEEKDAY(Nakit_Akis[[#This Row],[Tarih]],2),Gunler[#All],2,0) -> Pazartesi | E72: =IF(Nakit_Akis[[#This Row],[İşlem Türü]]="Başlangıç Bakiye",WEEKNUM(Nakit_Akis[[#This Row],[Tarih]],2)-1,WEEKNUM(Nakit_Akis[[#This Row],[Tarih]],2)) -> 25 | F72: =IF(Nakit_Akis[[#This Row],[İşlem Türü]]="Başlangıç Bakiye",MONTH(Nakit_Akis[[#This Row],[Tarih]])-1,MONTH(Nakit_Akis[[#This Row],[Tarih]])) -> 6 | G72: =VLOOKUP(J72,Grup[#All],3,0) -> Nakit Çıkışları | H72: =VLOOKUP(J72,Grup[#All],2,0) -> Operasyon | I72: EFT | J72: Elektrik / Su / Doğalgaz | K72: G Elektrik Dağıtım | M72: -1000 | N72: =IF(OR(AND(Nakit_Akis[[#This Row],[Giriş/Çıkış]]="Nakit Çıkışları",Nakit_Akis[[#This Row],[Tutar]]<0),AND(Nakit_Akis[[#This Row],[Giriş/Çıkış]]<>"Nakit Çıkışları",Nakit_Akis[[#This Row],[Tutar]]>0)),"","Hata") ->  | O72: =SUM(INDEX(Nakit_Akis[Tutar],1):Nakit_Akis[[#This Row],[Tutar]]) -> 61600
B73: =COUNTA(INDEX(Nakit_Akis[Tarih],1):Nakit_Akis[[#This Row],[Tarih]]) -> 51 | C73: 2020-06-15 | D73: =VLOOKUP(WEEKDAY(Nakit_Akis[[#This Row],[Tarih]],2),Gunler[#All],2,0) -> Pazartesi | E73: =IF(Nakit_Akis[[#This Row],[İşlem Türü]]="Başlangıç Bakiye",WEEKNUM(Nakit_Akis[[#This Row],[Tarih]],2)-1,WEEKNUM(Nakit_Akis[[#This Row],[Tarih]],2)) -> 25 | F73: =IF(Nakit_Akis[[#This Row],[İşlem Türü]]="Başlangıç Bakiye",MONTH(Nakit_Akis[[#This Row],[Tarih]])-1,MONTH(Nakit_Akis[[#This Row],[Tarih]])) -> 6 | G73: =VLOOKUP(J73,Grup[#All],3,0) -> Nakit Çıkışları | H73: =VLOOKUP(J73,Grup[#All],2,0) -> Operasyon | I73: Çek | J73: Tedarikçi Ödemeleri | K73: B Madencilik | M73: -7500 | N73: =IF(OR(AND(Nakit_Akis[[#This Row],[Giriş/Çıkış]]="Nakit Çıkışları",Nakit_Akis[[#This Row],[Tutar]]<0),AND(Nakit_Akis[[#This Row],[Giriş/Çıkış]]<>"Nakit Çıkışları",Nakit_Akis[[#This Row],[Tutar]]>0)),"","Hata") ->  | O73: =SUM(INDEX(Nakit_Akis[Tutar],1):Nakit_Akis[[#This Row],[Tutar]]) -> 54100
B74: =COUNTA(INDEX(Nakit_Akis[Tarih],1):Nakit_Akis[[#This Row],[Tarih]]) -> 52 | C74: 2020-06-18 | D74: =VLOOKUP(WEEKDAY(Nakit_Akis[[#This Row],[Tarih]],2),Gunler[#All],2,0) -> Perşembe | E74: =IF(Nakit_Akis[[#This Row],[İşlem Türü]]="Başlangıç Bakiye",WEEKNUM(Nakit_Akis[[#This Row],[Tarih]],2)-1,WEEKNUM(Nakit_Akis[[#This Row],[Tarih]],2)) -> 25 | F74: =IF(Nakit_Akis[[#This Row],[İşlem Türü]]="Başlangıç Bakiye",MONTH(Nakit_Akis[[#This Row],[Tarih]])-1,MONTH(Nakit_Akis[[#This Row],[Tarih]])) -> 6 | G74: =VLOOKUP(J74,Grup[#All],3,0) -> Nakit Girişleri | H74: =VLOOKUP(J74,Grup[#All],2,0) -> Operasyon | I74: EFT | J74: Tahsilatlar | K74: E Restorasyon | M74: 25000 | N74: =IF(OR(AND(Nakit_Akis[[#This Row],[Giriş/Çıkış]]="Nakit Çıkışları",Nakit_Akis[[#This Row],[Tutar]]<0),AND(Nakit_Akis[[#This Row],[Giriş/Çıkış]]<>"Nakit Çıkışları",Nakit_Akis[[#This Row],[Tutar]]>0)),"","Hata") ->  | O74: =SUM(INDEX(Nakit_Akis[Tutar],1):Nakit_Akis[[#This Row],[Tutar]]) -> 79100
B75: =COUNTA(INDEX(Nakit_Akis[Tarih],1):Nakit_Akis[[#This Row],[Tarih]]) -> 53 | C75: 2020-06-18 | D75: =VLOOKUP(WEEKDAY(Nakit_Akis[[#This Row],[Tarih]],2),Gunler[#All],2,0) -> Perşembe | E75: =IF(Nakit_Akis[[#This Row],[İşlem Türü]]="Başlangıç Bakiye",WEEKNUM(Nakit_Akis[[#This Row],[Tarih]],2)-1,WEEKNUM(Nakit_Akis[[#This Row],[Tarih]],2)) -> 25 | F75: =IF(Nakit_Akis[[#This Row],[İşlem Türü]]="Başlangıç Bakiye",MONTH(Nakit_Akis[[#This Row],[Tarih]])-1,MONTH(Nakit_Akis[[#This Row],[Tarih]])) -> 6 | G75: =VLOOKUP(J75,Grup[#All],3,0) -> Nakit Çıkışları | H75: =VLOOKUP(J75,Grup[#All],2,0) -> Operasyon | I75: EFT | J75: Tedarikçi Ödemeleri | K75: E Toptan Ticaret | M75: -2500 | N75: =IF(OR(AND(Nakit_Akis[[#This Row],[Giriş/Çıkış]]="Nakit Çıkışları",Nakit_Akis[[#This Row],[Tutar]]<0),AND(Nakit_Akis[[#This Row],[Giriş/Çıkış]]<>"Nakit Çıkışları",Nakit_Akis[[#This Row],[Tutar]]>0)),"","Hata") ->  | O75: =SUM(INDEX(Nakit_Akis[Tutar],1):Nakit_Akis[[#This Row],[Tutar]]) -> 76600
B76: =COUNTA(INDEX(Nakit_Akis[Tarih],1):Nakit_Akis[[#This Row],[Tarih]]) -> 54 | C76: 2020-06-22 | D76: =VLOOKUP(WEEKDAY(Nakit_Akis[[#This Row],[Tarih]],2),Gunler[#All],2,0) -> Pazartesi | E76: =IF(Nakit_Akis[[#This Row],[İşlem Türü]]="Başlangıç Bakiye",WEEKNUM(Nakit_Akis[[#This Row],[Tarih]],2)-1,WEEKNUM(Nakit_Akis[[#This Row],[Tarih]],2)) -> 26 | F76: =IF(Nakit_Akis[[#This Row],[İşlem Türü]]="Başlangıç Bakiye",MONTH(Nakit_Akis[[#This Row],[Tarih]])-1,MONTH(Nakit_Akis[[#This Row],[Tarih]])) -> 6 | G76: =VLOOKUP(J76,Grup[#All],3,0) -> Nakit Girişleri | H76: =VLOOKUP(J76,Grup[#All],2,0) -> Operasyon | I76: Çek | J76: Tahsilatlar | K76: B İnşaat | M76: 25000 | N76: =IF(OR(AND(Nakit_Akis[[#This Row],[Giriş/Çıkış]]="Nakit Çıkışları",Nakit_Akis[[#This Row],[Tutar]]<0),AND(Nakit_Akis[[#This Row],[Giriş/Çıkış]]<>"Nakit Çıkışları",Nakit_Akis[[#This Row],[Tutar]]>0)),"","Hata") ->  | O76: =SUM(INDEX(Nakit_Akis[Tutar],1):Nakit_Akis[[#This Row],[Tutar]]) -> 101600
B77: =COUNTA(INDEX(Nakit_Akis[Tarih],1):Nakit_Akis[[#This Row],[Tarih]]) -> 55 | C77: 2020-06-22 | D77: =VLOOKUP(WEEKDAY(Nakit_Akis[[#This Row],[Tarih]],2),Gunler[#All],2,0) -> Pazartesi | E77: =IF(Nakit_Akis[[#This Row],[İşlem Türü]]="Başlangıç Bakiye",WEEKNUM(Nakit_Akis[[#This Row],[Tarih]],2)-1,WEEKNUM(Nakit_Akis[[#This Row],[Tarih]],2)) -> 26 | F77: =IF(Nakit_Akis[[#This Row],[İşlem Türü]]="Başlangıç Bakiye",MONTH(Nakit_Akis[[#This Row],[Tarih]])-1,MONTH(Nakit_Akis[[#This Row],[Tarih]])) -> 6 | G77: =VLOOKUP(J77,Grup[#All],3,0) -> Nakit Çıkışları | H77: =VLOOKUP(J77,Grup[#All],2,0) -> Operasyon | I77: Çek | J77: Tedarikçi Ödemeleri | K77: C Nakliyat | M77: -12500 | N77: =IF(OR(AND(Nakit_Akis[[#This Row],[Giriş/Çıkış]]="Nakit Çıkışları",Nakit_Akis[[#This Row],[Tutar]]<0),AND(Nakit_Akis[[#This Row],[Giriş/Çıkış]]<>"Nakit Çıkışları",Nakit_Akis[[#This Row],[Tutar]]>0)),"","Hata") ->  | O77: =SUM(INDEX(Nakit_Akis[Tutar],1):Nakit_Akis[[#This Row],[Tutar]]) -> 89100
B78: =COUNTA(INDEX(Nakit_Akis[Tarih],1):Nakit_Akis[[#This Row],[Tarih]]) -> 56 | C78: 2020-06-24 | D78: =VLOOKUP(WEEKDAY(Nakit_Akis[[#This Row],[Tarih]],2),Gunler[#All],2,0) -> Çarşamba | E78: =IF(Nakit_Akis[[#This Row],[İşlem Türü]]="Başlangıç Bakiye",WEEKNUM(Nakit_Akis[[#This Row],[Tarih]],2)-1,WEEKNUM(Nakit_Akis[[#This Row],[Tarih]],2)) -> 26 | F78: =IF(Nakit_Akis[[#This Row],[İşlem Türü]]="Başlangıç Bakiye",MONTH(Nakit_Akis[[#This Row],[Tarih]])-1,MONTH(Nakit_Akis[[#This Row],[Tarih]])) -> 6 | G78: =VLOOKUP(J78,Grup[#All],3,0) -> Nakit Girişleri | H78: =VLOOKUP(J78,Grup[#All],2,0) -> Operasyon | I78: Kredi Kartı | J78: Tahsilatlar | K78: A Ticaret | M78: 20000 | N78: =IF(OR(AND(Nakit_Akis[[#This Row],[Giriş/Çıkış]]="Nakit Çıkışları",Nakit_Akis[[#This Row],[Tutar]]<0),AND(Nakit_Akis[[#This Row],[Giriş/Çıkış]]<>"Nakit Çıkışları",Nakit_Akis[[#This Row],[Tutar]]>0)),"","Hata") ->  | O78: =SUM(INDEX(Nakit_Akis[Tutar],1):Nakit_Akis[[#This Row],[Tutar]]) -> 109100
B79: =COUNTA(INDEX(Nakit_Akis[Tarih],1):Nakit_Akis[[#This Row],[Tarih]]) -> 57 | C79: 2020-06-24 | D79: =VLOOKUP(WEEKDAY(Nakit_Akis[[#This Row],[Tarih]],2),Gunler[#All],2,0) -> Çarşamba | E79: =IF(Nakit_Akis[[#This Row],[İşlem Türü]]="Başlangıç Bakiye",WEEKNUM(Nakit_Akis[[#This Row],[Tarih]],2)-1,WEEKNUM(Nakit_Akis[[#This Row],[Tarih]],2)) -> 26 | F79: =IF(Nakit_Akis[[#This Row],[İşlem Türü]]="Başlangıç Bakiye",MONTH(Nakit_Akis[[#This Row],[Tarih]])-1,MONTH(Nakit_Akis[[#This Row],[Tarih]])) -> 6 | G79: =VLOOKUP(J79,Grup[#All],3,0) -> Nakit Çıkışları | H79: =VLOOKUP(J79,Grup[#All],2,0) -> Operasyon | I79: Çek | J79: Tedarikçi Ödemeleri | K79: D Nalburiye | M79: -10000 | N79: =IF(OR(AND(Nakit_Akis[[#This Row],[Giriş/Çıkış]]="Nakit Çıkışları",Nakit_Akis[[#This Row],[Tutar]]<0),AND(Nakit_Akis[[#This Row],[Giriş/Çıkış]]<>"Nakit Çıkışları",Nakit_Akis[[#This Row],[Tutar]]>0)),"","Hata") ->  | O79: =SUM(INDEX(Nakit_Akis[Tutar],1):Nakit_Akis[[#This Row],[Tutar]]) -> 99100
B80: =COUNTA(INDEX(Nakit_Akis[Tarih],1):Nakit_Akis[[#This Row],[Tarih]]) -> 58 | C80: 2020-06-26 | D80: =VLOOKUP(WEEKDAY(Nakit_Akis[[#This Row],[Tarih]],2),Gunler[#All],2,0) -> Cuma | E80: =IF(Nakit_Akis[[#This Row],[İşlem Türü]]="Başlangıç Bakiye",WEEKNUM(Nakit_Akis[[#This Row],[Tarih]],2)-1,WEEKNUM(Nakit_Akis[[#This Row],[Tarih]],2)) -> 26 | F80: =IF(Nakit_Akis[[#This Row],[İşlem Türü]]="Başlangıç Bakiye",MONTH(Nakit_Akis[[#This Row],[Tarih]])-1,MONTH(Nakit_Akis[[#This Row],[Tarih]])) -> 6 | G80: =VLOOKUP(J80,Grup[#All],3,0) -> Nakit Girişleri | H80: =VLOOKUP(J80,Grup[#All],2,0) -> Operasyon | I80: EFT | J80: Tahsilatlar | K80: E Restorasyon | M80: 25000 | N80: =IF(OR(AND(Nakit_Akis[[#This Row],[Giriş/Çıkış]]="Nakit Çıkışları",Nakit_Akis[[#This Row],[Tutar]]<0),AND(Nakit_Akis[[#This Row],[Giriş/Çıkış]]<>"Nakit Çıkışları",Nakit_Akis[[#This Row],[Tutar]]>0)),"","Hata") ->  | O80: =SUM(INDEX(Nakit_Akis[Tutar],1):Nakit_Akis[[#This Row],[Tutar]]) -> 124100
B81: =COUNTA(INDEX(Nakit_Akis[Tarih],1):Nakit_Akis[[#This Row],[Tarih]]) -> 59 | C81: 2020-06-26 | D81: =VLOOKUP(WEEKDAY(Nakit_Akis[[#This Row],[Tarih]],2),Gunler[#All],2,0) -> Cuma | E81: =IF(Nakit_Akis[[#This Row],[İşlem Türü]]="Başlangıç Bakiye",WEEKNUM(Nakit_Akis[[#This Row],[Tarih]],2)-1,WEEKNUM(Nakit_Akis[[#This Row],[Tarih]],2)) -> 26 | F81: =IF(Nakit_Akis[[#This Row],[İşlem Türü]]="Başlangıç Bakiye",MONTH(Nakit_Akis[[#This Row],[Tarih]])-1,MONTH(Nakit_Akis[[#This Row],[Tarih]])) -> 6 | G81: =VLOOKUP(J81,Grup[#All],3,0) -> Nakit Çıkışları | H81: =VLOOKUP(J81,Grup[#All],2,0) -> Operasyon | I81: EFT | J81: Muhtasar Ödemeleri | K81: Vergi Dairesi | M81: -12000 | N81: =IF(OR(AND(Nakit_Akis[[#This Row],[Giriş/Çıkış]]="Nakit Çıkışları",Nakit_Akis[[#This Row],[Tutar]]<0),AND(Nakit_Akis[[#This Row],[Giriş/Çıkış]]<>"Nakit Çıkışları",Nakit_Akis[[#This Row],[Tutar]]>0)),"","Hata") ->  | O81: =SUM(INDEX(Nakit_Akis[Tutar],1):Nakit_Akis[[#This Row],[Tutar]]) -> 112100
B82: =COUNTA(INDEX(Nakit_Akis[Tarih],1):Nakit_Akis[[#This Row],[Tarih]]) -> 60 | C82: 2020-06-26 | D82: =VLOOKUP(WEEKDAY(Nakit_Akis[[#This Row],[Tarih]],2),Gunler[#All],2,0) -> Cuma | E82: =IF(Nakit_Akis[[#This Row],[İşlem Türü]]="Başlangıç Bakiye",WEEKNUM(Nakit_Akis[[#This Row],[Tarih]],2)-1,WEEKNUM(Nakit_Akis[[#This Row],[Tarih]],2)) -> 26 | F82: =IF(Nakit_Akis[[#This Row],[İşlem Türü]]="Başlangıç Bakiye",MONTH(Nakit_Akis[[#This Row],[Tarih]])-1,MONTH(Nakit_Akis[[#This Row],[Tarih]])) -> 6 | G82: =VLOOKUP(J82,Grup[#All],3,0) -> Nakit Çıkışları | H82: =VLOOKUP(J82,Grup[#All],2,0) -> Operasyon | I82: EFT | J82: KDV Ödemeleri | K82: Vergi Dairesi | M82: -25000 | N82: =IF(OR(AND(Nakit_Akis[[#This Row],[Giriş/Çıkış]]="Nakit Çıkışları",Nakit_Akis[[#This Row],[Tutar]]<0),AND(Nakit_Akis[[#This Row],[Giriş/Çıkış]]<>"Nakit Çıkışları",Nakit_Akis[[#This Row],[Tutar]]>0)),"","Hata") ->  | O82: =SUM(INDEX(Nakit_Akis[Tutar],1):Nakit_Akis[[#This Row],[Tutar]]) -> 87100
B83: =COUNTA(INDEX(Nakit_Akis[Tarih],1):Nakit_Akis[[#This Row],[Tarih]]) -> 61 | C83: 2020-06-26 | D83: =VLOOKUP(WEEKDAY(Nakit_Akis[[#This Row],[Tarih]],2),Gunler[#All],2,0) -> Cuma | E83: =IF(Nakit_Akis[[#This Row],[İşlem Türü]]="Başlangıç Bakiye",WEEKNUM(Nakit_Akis[[#This Row],[Tarih]],2)-1,WEEKNUM(Nakit_Akis[[#This Row],[Tarih]],2)) -> 26 | F83: =IF(Nakit_Akis[[#This Row],[İşlem Türü]]="Başlangıç Bakiye",MONTH(Nakit_Akis[[#This Row],[Tarih]])-1,MONTH(Nakit_Akis[[#This Row],[Tarih]])) -> 6 | G83: =VLOOKUP(J83,Grup[#All],3,0) -> Nakit Çıkışları | H83: =VLOOKUP(J83,Grup[#All],2,0) -> Operasyon | I83: EFT | J83: Tedarikçi Ödemeleri | K83: E Toptan Ticaret | M83: -25000 | N83: =IF(OR(AND(Nakit_Akis[[#This Row],[Giriş/Çıkış]]="Nakit Çıkışları",Nakit_Akis[[#This Row],[Tutar]]<0),AND(Nakit_Akis[[#This Row],[Giriş/Çıkış]]<>"Nakit Çıkışları",Nakit_Akis[[#This Row],[Tutar]]>0)),"","Hata") ->  | O83: =SUM(INDEX(Nakit_Akis[Tutar],1):Nakit_Akis[[#This Row],[Tutar]]) -> 62100
B84: =COUNTA(INDEX(Nakit_Akis[Tarih],1):Nakit_Akis[[#This Row],[Tarih]]) -> 62 | C84: 2020-06-29 | D84: =VLOOKUP(WEEKDAY(Nakit_Akis[[#This Row],[Tarih]],2),Gunler[#All],2,0) -> Pazartesi | E84: =IF(Nakit_Akis[[#This Row],[İşlem Türü]]="Başlangıç Bakiye",WEEKNUM(Nakit_Akis[[#This Row],[Tarih]],2)-1,WEEKNUM(Nakit_Akis[[#This Row],[Tarih]],2)) -> 27 | F84: =IF(Nakit_Akis[[#This Row],[İşlem Türü]]="Başlangıç Bakiye",MONTH(Nakit_Akis[[#This Row],[Tarih]])-1,MONTH(Nakit_Akis[[#This Row],[Tarih]])) -> 6 | G84: =VLOOKUP(J84,Grup[#All],3,0) -> Nakit Çıkışları | H84: =VLOOKUP(J84,Grup[#All],2,0) -> Operasyon | I84: EFT | J84: SGK Ödemeleri | K84: SGK | M84: -2000 | N84: =IF(OR(AND(Nakit_Akis[[#This Row],[Giriş/Çıkış]]="Nakit Çıkışları",Nakit_Akis[[#This Row],[Tutar]]<0),AND(Nakit_Akis[[#This Row],[Giriş/Çıkış]]<>"Nakit Çıkışları",Nakit_Akis[[#This Row],[Tutar]]>0)),"","Hata") ->  | O84: =SUM(INDEX(Nakit_Akis[Tutar],1):Nakit_Akis[[#This Row],[Tutar]]) -> 60100
B85: =COUNTA(INDEX(Nakit_Akis[Tarih],1):Nakit_Akis[[#This Row],[Tarih]]) -> 63 | C85: 2020-06-30 | D85: =VLOOKUP(WEEKDAY(Nakit_Akis[[#This Row],[Tarih]],2),Gunler[#All],2,0) -> Salı | E85: =IF(Nakit_Akis[[#This Row],[İşlem Türü]]="Başlangıç Bakiye",WEEKNUM(Nakit_Akis[[#This Row],[Tarih]],2)-1,WEEKNUM(Nakit_Akis[[#This Row],[Tarih]],2)) -> 27 | F85: =IF(Nakit_Akis[[#This Row],[İşlem Türü]]="Başlangıç Bakiye",MONTH(Nakit_Akis[[#This Row],[Tarih]])-1,MONTH(Nakit_Akis[[#This Row],[Tarih]])) -> 6 | G85: =VLOOKUP(J85,Grup[#All],3,0) -> Nakit Girişleri | H85: =VLOOKUP(J85,Grup[#All],2,0) -> Operasyon | I85: Çek | J85: Tahsilatlar | K85: C Mimarlık | M85: 10000 | N85: =IF(OR(AND(Nakit_Akis[[#This Row],[Giriş/Çıkış]]="Nakit Çıkışları",Nakit_Akis[[#This Row],[Tutar]]<0),AND(Nakit_Akis[[#This Row],[Giriş/Çıkış]]<>"Nakit Çıkışları",Nakit_Akis[[#This Row],[Tutar]]>0)),"","Hata") ->  | O85: =SUM(INDEX(Nakit_Akis[Tutar],1):Nakit_Akis[[#This Row],[Tutar]]) -> 70100
B86: =COUNTA(INDEX(Nakit_Akis[Tarih],1):Nakit_Akis[[#This Row],[Tarih]]) -> 64 | C86: 2020-06-30 | D86: =VLOOKUP(WEEKDAY(Nakit_Akis[[#This Row],[Tarih]],2),Gunler[#All],2,0) -> Salı | E86: =IF(Nakit_Akis[[#This Row],[İşlem Türü]]="Başlangıç Bakiye",WEEKNUM(Nakit_Akis[[#This Row],[Tarih]],2)-1,WEEKNUM(Nakit_Akis[[#This Row],[Tarih]],2)) -> 27 | F86: =IF(Nakit_Akis[[#This Row],[İşlem Türü]]="Başlangıç Bakiye",MONTH(Nakit_Akis[[#This Row],[Tarih]])-1,MONTH(Nakit_Akis[[#This Row],[Tarih]])) -> 6 | G86: =VLOOKUP(J86,Grup[#All],3,0) -> Nakit Çıkışları | H86: =VLOOKUP(J86,Grup[#All],2,0) -> Finansman | I86: EFT | J86: Faiz Ödemeleri | K86: Vergi Dairesi | M86: -3000 | N86: =IF(OR(AND(Nakit_Akis[[#This Row],[Giriş/Çıkış]]="Nakit Çıkışları",Nakit_Akis[[#This Row],[Tutar]]<0),AND(Nakit_Akis[[#This Row],[Giriş/Çıkış]]<>"Nakit Çıkışları",Nakit_Akis[[#This Row],[Tutar]]>0)),"","Hata") ->  | O86: =SUM(INDEX(Nakit_Akis[Tutar],1):Nakit_Akis[[#This Row],[Tutar]]) -> 67100
B87: =COUNTA(INDEX(Nakit_Akis[Tarih],1):Nakit_Akis[[#This Row],[Tarih]]) -> 65 | C87: 2020-06-30 | D87: =VLOOKUP(WEEKDAY(Nakit_Akis[[#This Row],[Tarih]],2),Gunler[#All],2,0) -> Salı | E87: =IF(Nakit_Akis[[#This Row],[İşlem Türü]]="Başlangıç Bakiye",WEEKNUM(Nakit_Akis[[#This Row],[Tarih]],2)-1,WEEKNUM(Nakit_Akis[[#This Row],[Tarih]],2)) -> 27 | F87: =IF(Nakit_Akis[[#This Row],[İşlem Türü]]="Başlangıç Bakiye",MONTH(Nakit_Akis[[#This Row],[Tarih]])-1,MONTH(Nakit_Akis[[#This Row],[Tarih]])) -> 6 | G87: =VLOOKUP(J87,Grup[#All],3,0) -> Nakit Çıkışları | H87: =VLOOKUP(J87,Grup[#All],2,0) -> Finansman | I87: EFT | J87: Kredi Geri Ödemeleri | K87: X Bank | M87: -20000 | N87: =IF(OR(AND(Nakit_Akis[[#This Row],[Giriş/Çıkış]]="Nakit Çıkışları",Nakit_Akis[[#This Row],[Tutar]]<0),AND(Nakit_Akis[[#This Row],[Giriş/Çıkış]]<>"Nakit Çıkışları",Nakit_Akis[[#This Row],[Tutar]]>0)),"","Hata") ->  | O87: =SUM(INDEX(Nakit_Akis[Tutar],1):Nakit_Akis[[#This Row],[Tutar]]) -> 47100
B88: =COUNTA(INDEX(Nakit_Akis[Tarih],1):Nakit_Akis[[#This Row],[Tarih]]) -> 66 | C88: 2020-07-01 | D88: =VLOOKUP(WEEKDAY(Nakit_Akis[[#This Row],[Tarih]],2),Gunler[#All],2,0) -> Çarşamba | E88: =IF(Nakit_Akis[[#This Row],[İşlem Türü]]="Başlangıç Bakiye",WEEKNUM(Nakit_Akis[[#This Row],[Tarih]],2)-1,WEEKNUM(Nakit_Akis[[#This Row],[Tarih]],2)) -> 27 | F88: =IF(Nakit_Akis[[#This Row],[İşlem Türü]]="Başlangıç Bakiye",MONTH(Nakit_Akis[[#This Row],[Tarih]])-1,MONTH(Nakit_Akis[[#This Row],[Tarih]])) -> 7 | G88: =VLOOKUP(J88,Grup[#All],3,0) -> Nakit Çıkışları | H88: =VLOOKUP(J88,Grup[#All],2,0) -> Operasyon | I88: EFT | J88: Tedarikçi Ödemeleri | K88: A Madencilik | M88: -12500 | N88: =IF(OR(AND(Nakit_Akis[[#This Row],[Giriş/Çıkış]]="Nakit Çıkışları",Nakit_Akis[[#This Row],[Tutar]]<0),AND(Nakit_Akis[[#This Row],[Giriş/Çıkış]]<>"Nakit Çıkışları",Nakit_Akis[[#This Row],[Tutar]]>0)),"","Hata") ->  | O88: =SUM(INDEX(Nakit_Akis[Tutar],1):Nakit_Akis[[#This Row],[Tutar]]) -> 34600
B89: =COUNTA(INDEX(Nakit_Akis[Tarih],1):Nakit_Akis[[#This Row],[Tarih]]) -> 67 | C89: 2020-07-02 | D89: =VLOOKUP(WEEKDAY(Nakit_Akis[[#This Row],[Tarih]],2),Gunler[#All],2,0) -> Perşembe | E89: =IF(Nakit_Akis[[#This Row],[İşlem Türü]]="Başlangıç Bakiye",WEEKNUM(Nakit_Akis[[#This Row],[Tarih]],2)-1,WEEKNUM(Nakit_Akis[[#This Row],[Tarih]],2)) -> 27 | F89: =IF(Nakit_Akis[[#This Row],[İşlem Türü]]="Başlangıç Bakiye",MONTH(Nakit_Akis[[#This Row],[Tarih]])-1,MONTH(Nakit_Akis[[#This Row],[Tarih]])) -> 7 | G89: =VLOOKUP(J89,Grup[#All],3,0) -> Nakit Girişleri | H89: =VLOOKUP(J89,Grup[#All],2,0) -> Operasyon | I89: Çek | J89: Tahsilatlar | K89: E Restorasyon | M89: 15000 | N89: =IF(OR(AND(Nakit_Akis[[#This Row],[Giriş/Çıkış]]="Nakit Çıkışları",Nakit_Akis[[#This Row],[Tutar]]<0),AND(Nakit_Akis[[#This Row],[Giriş/Çıkış]]<>"Nakit Çıkışları",Nakit_Akis[[#This Row],[Tutar]]>0)),"","Hata") ->  | O89: =SUM(INDEX(Nakit_Akis[Tutar],1):Nakit_Akis[[#This Row],[Tutar]]) -> 49600
B90: =COUNTA(INDEX(Nakit_Akis[Tarih],1):Nakit_Akis[[#This Row],[Tarih]]) -> 68 | C90: 2020-07-03 | D90: =VLOOKUP(WEEKDAY(Nakit_Akis[[#This Row],[Tarih]],2),Gunler[#All],2,0) -> Cuma | E90: =IF(Nakit_Akis[[#This Row],[İşlem Türü]]="Başlangıç Bakiye",WEEKNUM(Nakit_Akis[[#This Row],[Tarih]],2)-1,WEEKNUM(Nakit_Akis[[#This Row],[Tarih]],2)) -> 27 | F90: =IF(Nakit_Akis[[#This Row],[İşlem Türü]]="Başlangıç Bakiye",MONTH(Nakit_Akis[[#This Row],[Tarih]])-1,MONTH(Nakit_Akis[[#This Row],[Tarih]])) -> 7 | G90: =VLOOKUP(J90,Grup[#All],3,0) -> Nakit Girişleri | H90: =VLOOKUP(J90,Grup[#All],2,0) -> Operasyon | I90: EFT | J90: Tahsilatlar | K90: A Ticaret | M90: 30000 | N90: =IF(OR(AND(Nakit_Akis[[#This Row],[Giriş/Çıkış]]="Nakit Çıkışları",Nakit_Akis[[#This Row],[Tutar]]<0),AND(Nakit_Akis[[#This Row],[Giriş/Çıkış]]<>"Nakit Çıkışları",Nakit_Akis[[#This Row],[Tutar]]>0)),"","Hata") ->  | O90: =SUM(INDEX(Nakit_Akis[Tutar],1):Nakit_Akis[[#This Row],[Tutar]]) -> 79600
B91: =COUNTA(INDEX(Nakit_Akis[Tarih],1):Nakit_Akis[[#This Row],[Tarih]]) -> 69 | C91: 2020-07-03 | D91: =VLOOKUP(WEEKDAY(Nakit_Akis[[#This Row],[Tarih]],2),Gunler[#All],2,0) -> Cuma | E91: =IF(Nakit_Akis[[#This Row],[İşlem Türü]]="Başlangıç Bakiye",WEEKNUM(Nakit_Akis[[#This Row],[Tarih]],2)-1,WEEKNUM(Nakit_Akis[[#This Row],[Tarih]],2)) -> 27 | F91: =IF(Nakit_Akis[[#This Row],[İşlem Türü]]="Başlangıç Bakiye",MONTH(Nakit_Akis[[#This Row],[Tarih]])-1,MONTH(Nakit_Akis[[#This Row],[Tarih]])) -> 7 | G91: =VLOOKUP(J91,Grup[#All],3,0) -> Nakit Girişleri | H91: =VLOOKUP(J91,Grup[#All],2,0) -> Operasyon | I91: EFT | J91: Tahsilatlar | K91: F Mühendislik | M91: 18000 | N91: =IF(OR(AND(Nakit_Akis[[#This Row],[Giriş/Çıkış]]="Nakit Çıkışları",Nakit_Akis[[#This Row],[Tutar]]<0),AND(Nakit_Akis[[#This Row],[Giriş/Çıkış]]<>"Nakit Çıkışları",Nakit_Akis[[#This Row],[Tutar]]>0)),"","Hata") ->  | O91: =SUM(INDEX(Nakit_Akis[Tutar],1):Nakit_Akis[[#This Row],[Tutar]]) -> 97600
B92: =COUNTA(INDEX(Nakit_Akis[Tarih],1):Nakit_Akis[[#This Row],[Tarih]]) -> 70 | C92: 2020-07-06 | D92: =VLOOKUP(WEEKDAY(Nakit_Akis[[#This Row],[Tarih]],2),Gunler[#All],2,0) -> Pazartesi | E92: =IF(Nakit_Akis[[#This Row],[İşlem Türü]]="Başlangıç Bakiye",WEEKNUM(Nakit_Akis[[#This Row],[Tarih]],2)-1,WEEKNUM(Nakit_Akis[[#This Row],[Tarih]],2)) -> 28 | F92: =IF(Nakit_Akis[[#This Row],[İşlem Türü]]="Başlangıç Bakiye",MONTH(Nakit_Akis[[#This Row],[Tarih]])-1,MONTH(Nakit_Akis[[#This Row],[Tarih]])) -> 7 | G92: =VLOOKUP(J92,Grup[#All],3,0) -> Nakit Girişleri | H92: =VLOOKUP(J92,Grup[#All],2,0) -> Operasyon | I92: EFT | J92: Tahsilatlar | K92: A Ticaret | M92: 75000 | N92: =IF(OR(AND(Nakit_Akis[[#This Row],[Giriş/Çıkış]]="Nakit Çıkışları",Nakit_Akis[[#This Row],[Tutar]]<0),AND(Nakit_Akis[[#This Row],[Giriş/Çıkış]]<>"Nakit Çıkışları",Nakit_Akis[[#This Row],[Tutar]]>0)),"","Hata") ->  | O92: =SUM(INDEX(Nakit_Akis[Tutar],1):Nakit_Akis[[#This Row],[Tutar]]) -> 172600
B93: =COUNTA(INDEX(Nakit_Akis[Tarih],1):Nakit_Akis[[#This Row],[Tarih]]) -> 71 | C93: 2020-07-06 | D93: =VLOOKUP(WEEKDAY(Nakit_Akis[[#This Row],[Tarih]],2),Gunler[#All],2,0) -> Pazartesi | E93: =IF(Nakit_Akis[[#This Row],[İşlem Türü]]="Başlangıç Bakiye",WEEKNUM(Nakit_Akis[[#This Row],[Tarih]],2)-1,WEEKNUM(Nakit_Akis[[#This Row],[Tarih]],2)) -> 28 | F93: =IF(Nakit_Akis[[#This Row],[İşlem Türü]]="Başlangıç Bakiye",MONTH(Nakit_Akis[[#This Row],[Tarih]])-1,MONTH(Nakit_Akis[[#This Row],[Tarih]])) -> 7 | G93: =VLOOKUP(J93,Grup[#All],3,0) -> Nakit Çıkışları | H93: =VLOOKUP(J93,Grup[#All],2,0) -> Operasyon | I93: EFT | J93: Kira Ödemeleri | K93: Vergi Dairesi | M93: -10000 | N93: =IF(OR(AND(Nakit_Akis[[#This Row],[Giriş/Çıkış]]="Nakit Çıkışları",Nakit_Akis[[#This Row],[Tutar]]<0),AND(Nakit_Akis[[#This Row],[Giriş/Çıkış]]<>"Nakit Çıkışları",Nakit_Akis[[#This Row],[Tutar]]>0)),"","Hata") ->  | O93: =SUM(INDEX(Nakit_Akis[Tutar],1):Nakit_Akis[[#This Row],[Tutar]]) -> 162600
B94: =COUNTA(INDEX(Nakit_Akis[Tarih],1):Nakit_Akis[[#This Row],[Tarih]]) -> 72 | C94: 2020-07-06 | D94: =VLOOKUP(WEEKDAY(Nakit_Akis[[#This Row],[Tarih]],2),Gunler[#All],2,0) -> Pazartesi | E94: =IF(Nakit_Akis[[#This Row],[İşlem Türü]]="Başlangıç Bakiye",WEEKNUM(Nakit_Akis[[#This Row],[Tarih]],2)-1,WEEKNUM(Nakit_Akis[[#This Row],[Tarih]],2)) -> 28 | F94: =IF(Nakit_Akis[[#This Row],[İşlem Türü]]="Başlangıç Bakiye",MONTH(Nakit_Akis[[#This Row],[Tarih]])-1,MONTH(Nakit_Akis[[#This Row],[Tarih]])) -> 7 | G94: =VLOOKUP(J94,Grup[#All],3,0) -> Nakit Çıkışları | H94: =VLOOKUP(J94,Grup[#All],2,0) -> Operasyon | I94: EFT | J94: Personel Ücretleri | K94: Personel | M94: -95000 | N94: =IF(OR(AND(Nakit_Akis[[#This Row],[Giriş/Çıkış]]="Nakit Çıkışları",Nakit_Akis[[#This Row],[Tutar]]<0),AND(Nakit_Akis[[#This Row],[Giriş/Çıkış]]<>"Nakit Çıkışları",Nakit_Akis[[#This Row],[Tutar]]>0)),"","Hata") ->  | O94: =SUM(INDEX(Nakit_Akis[Tutar],1):Nakit_Akis[[#This Row],[Tutar]]) -> 67600
B95: =COUNTA(INDEX(Nakit_Akis[Tarih],1):Nakit_Akis[[#This Row],[Tarih]]) -> 73 | C95: 2020-07-07 | D95: =VLOOKUP(WEEKDAY(Nakit_Akis[[#This Row],[Tarih]],2),Gunler[#All],2,0) -> Salı | E95: =IF(Nakit_Akis[[#This Row],[İşlem Türü]]="Başlangıç Bakiye",WEEKNUM(Nakit_Akis[[#This Row],[Tarih]],2)-1,WEEKNUM(Nakit_Akis[[#This Row],[Tarih]],2)) -> 28 | F95: =IF(Nakit_Akis[[#This Row],[İşlem Türü]]="Başlangıç Bakiye",MONTH(Nakit_Akis[[#This Row],[Tarih]])-1,MONTH(Nakit_Akis[[#This Row],[Tarih]])) -> 7 | G95: =VLOOKUP(J95,Grup[#All],3,0) -> Nakit Çıkışları | H95: =VLOOKUP(J95,Grup[#All],2,0) -> Operasyon | I95: EFT | J95: Tedarikçi Ödemeleri | K95: D Nalburiye | M95: -7500 | N95: =IF(OR(AND(Nakit_Akis[[#This Row],[Giriş/Çıkış]]="Nakit Çıkışları",Nakit_Akis[[#This Row],[Tutar]]<0),AND(Nakit_Akis[[#This Row],[Giriş/Çıkış]]<>"Nakit Çıkışları",Nakit_Akis[[#This Row],[Tutar]]>0)),"","Hata") ->  | O95: =SUM(INDEX(Nakit_Akis[Tutar],1):Nakit_Akis[[#This Row],[Tutar]]) -> 60100
B96: =COUNTA(INDEX(Nakit_Akis[Tarih],1):Nakit_Akis[[#This Row],[Tarih]]) -> 74 | C96: 2020-07-07 | D96: =VLOOKUP(WEEKDAY(Nakit_Akis[[#This Row],[Tarih]],2),Gunler[#All],2,0) -> Salı | E96: =IF(Nakit_Akis[[#This Row],[İşlem Türü]]="Başlangıç Bakiye",WEEKNUM(Nakit_Akis[[#This Row],[Tarih]],2)-1,WEEKNUM(Nakit_Akis[[#This Row],[Tarih]],2)) -> 28 | F96: =IF(Nakit_Akis[[#This Row],[İşlem Türü]]="Başlangıç Bakiye",MONTH(Nakit_Akis[[#This Row],[Tarih]])-1,MONTH(Nakit_Akis[[#This Row],[Tarih]])) -> 7 | G96: =VLOOKUP(J96,Grup[#All],3,0) -> Nakit Çıkışları | H96: =VLOOKUP(J96,Grup[#All],2,0) -> Operasyon | I96: EFT | J96: Tedarikçi Ödemeleri | K96: C Nakliyay | M96: -12500 | N96: =IF(OR(AND(Nakit_Akis[[#This Row],[Giriş/Çıkış]]="Nakit Çıkışları",Nakit_Akis[[#This Row],[Tutar]]<0),AND(Nakit_Akis[[#This Row],[Giriş/Çıkış]]<>"Nakit Çıkışları",Nakit_Akis[[#This Row],[Tutar]]>0)),"","Hata") ->  | O96: =SUM(INDEX(Nakit_Akis[Tutar],1):Nakit_Akis[[#This Row],[Tutar]]) -> 47600
B97: =COUNTA(INDEX(Nakit_Akis[Tarih],1):Nakit_Akis[[#This Row],[Tarih]]) -> 75 | C97: 2020-07-09 | D97: =VLOOKUP(WEEKDAY(Nakit_Akis[[#This Row],[Tarih]],2),Gunler[#All],2,0) -> Perşembe | E97: =IF(Nakit_Akis[[#This Row],[İşlem Türü]]="Başlangıç Bakiye",WEEKNUM(Nakit_Akis[[#This Row],[Tarih]],2)-1,WEEKNUM(Nakit_Akis[[#This Row],[Tarih]],2)) -> 28 | F97: =IF(Nakit_Akis[[#This Row],[İşlem Türü]]="Başlangıç Bakiye",MONTH(Nakit_Akis[[#This Row],[Tarih]])-1,MONTH(Nakit_Akis[[#This Row],[Tarih]])) -> 7 | G97: =VLOOKUP(J97,Grup[#All],3,0) -> Nakit Girişleri | H97: =VLOOKUP(J97,Grup[#All],2,0) -> Operasyon | I97: Çek | J97: Tahsilatlar | K97: B İnşaat | M97: 17000 | N97: =IF(OR(AND(Nakit_Akis[[#This Row],[Giriş/Çıkış]]="Nakit Çıkışları",Nakit_Akis[[#This Row],[Tutar]]<0),AND(Nakit_Akis[[#This Row],[Giriş/Çıkış]]<>"Nakit Çıkışları",Nakit_Akis[[#This Row],[Tutar]]>0)),"","Hata") ->  | O97: =SUM(INDEX(Nakit_Akis[Tutar],1):Nakit_Akis[[#This Row],[Tutar]]) -> 64600
B98: =COUNTA(INDEX(Nakit_Akis[Tarih],1):Nakit_Akis[[#This Row],[Tarih]]) -> 76 | C98: 2020-07-10 | D98: =VLOOKUP(WEEKDAY(Nakit_Akis[[#This Row],[Tarih]],2),Gunler[#All],2,0) -> Cuma | E98: =IF(Nakit_Akis[[#This Row],[İşlem Türü]]="Başlangıç Bakiye",WEEKNUM(Nakit_Akis[[#This Row],[Tarih]],2)-1,WEEKNUM(Nakit_Akis[[#This Row],[Tarih]],2)) -> 28 | F98: =IF(Nakit_Akis[[#This Row],[İşlem Türü]]="Başlangıç Bakiye",MONTH(Nakit_Akis[[#This Row],[Tarih]])-1,MONTH(Nakit_Akis[[#This Row],[Tarih]])) -> 7 | G98: =VLOOKUP(J98,Grup[#All],3,0) -> Nakit Çıkışları | H98: =VLOOKUP(J98,Grup[#All],2,0) -> Operasyon | I98: Çek | J98: Tedarikçi Ödemeleri | K98: B Madencilik | M98: -12500 | N98: =IF(OR(AND(Nakit_Akis[[#This Row],[Giriş/Çıkış]]="Nakit Çıkışları",Nakit_Akis[[#This Row],[Tutar]]<0),AND(Nakit_Akis[[#This Row],[Giriş/Çıkış]]<>"Nakit Çıkışları",Nakit_Akis[[#This Row],[Tutar]]>0)),"","Hata") ->  | O98: =SUM(INDEX(Nakit_Akis[Tutar],1):Nakit_Akis[[#This Row],[Tutar]]) -> 52100
B99: =COUNTA(INDEX(Nakit_Akis[Tarih],1):Nakit_Akis[[#This Row],[Tarih]]) -> 77 | C99: 2020-07-10 | D99: =VLOOKUP(WEEKDAY(Nakit_Akis[[#This Row],[Tarih]],2),Gunler[#All],2,0) -> Cuma | E99: =IF(Nakit_Akis[[#This Row],[İşlem Türü]]="Başlangıç Bakiye",WEEKNUM(Nakit_Akis[[#This Row],[Tarih]],2)-1,WEEKNUM(Nakit_Akis[[#This Row],[Tarih]],2)) -> 28 | F99: =IF(Nakit_Akis[[#This Row],[İşlem Türü]]="Başlangıç Bakiye",MONTH(Nakit_Akis[[#This Row],[Tarih]])-1,MONTH(Nakit_Akis[[#This Row],[Tarih]])) -> 7 | G99: =VLOOKUP(J99,Grup[#All],3,0) -> Nakit Çıkışları | H99: =VLOOKUP(J99,Grup[#All],2,0) -> Operasyon | I99: Çek | J99: Tedarikçi Ödemeleri | K99: A Madencilik | M99: -12500 | N99: =IF(OR(AND(Nakit_Akis[[#This Row],[Giriş/Çıkış]]="Nakit Çıkışları",Nakit_Akis[[#This Row],[Tutar]]<0),AND(Nakit_Akis[[#This Row],[Giriş/Çıkış]]<>"Nakit Çıkışları",Nakit_Akis[[#This Row],[Tutar]]>0)),"","Hata") ->  | O99: =SUM(INDEX(Nakit_Akis[Tutar],1):Nakit_Akis[[#This Row],[Tutar]]) -> 39600
B100: =COUNTA(INDEX(Nakit_Akis[Tarih],1):Nakit_Akis[[#This Row],[Tarih]]) -> 78 | C100: 2020-07-13 | D100: =VLOOKUP(WEEKDAY(Nakit_Akis[[#This Row],[Tarih]],2),Gunler[#All],2,0) -> Pazartesi | E100: =IF(Nakit_Akis[[#This Row],[İşlem Türü]]="Başlangıç Bakiye",WEEKNUM(Nakit_Akis[[#This Row],[Tarih]],2)-1,WEEKNUM(Nakit_Akis[[#This Row],[Tarih]],2)) -> 29 | F100: =IF(Nakit_Akis[[#This Row],[İşlem Türü]]="Başlangıç Bakiye",MONTH(Nakit_Akis[[#This Row],[Tarih]])-1,MONTH(Nakit_Akis[[#This Row],[Tarih]])) -> 7 | G100: =VLOOKUP(J100,Grup[#All],3,0) -> Nakit Çıkışları | H100: =VLOOKUP(J100,Grup[#All],2,0) -> Operasyon | I100: Çek | J100: Tedarikçi Ödemeleri | K100: A Madencilik | M100: -2500 | N100: =IF(OR(AND(Nakit_Akis[[#This Row],[Giriş/Çıkış]]="Nakit Çıkışları",Nakit_Akis[[#This Row],[Tutar]]<0),AND(Nakit_Akis[[#This Row],[Giriş/Çıkış]]<>"Nakit Çıkışları",Nakit_Akis[[#This Row],[Tutar]]>0)),"","Hata") ->  | O100: =SUM(INDEX(Nakit_Akis[Tutar],1):Nakit_Akis[[#This Row],[Tutar]]) -> 37100
B101: =COUNTA(INDEX(Nakit_Akis[Tarih],1):Nakit_Akis[[#This Row],[Tarih]]) -> 79 | C101: 2020-07-13 | D101: =VLOOKUP(WEEKDAY(Nakit_Akis[[#This Row],[Tarih]],2),Gunler[#All],2,0) -> Pazartesi | E101: =IF(Nakit_Akis[[#This Row],[İşlem Türü]]="Başlangıç Bakiye",WEEKNUM(Nakit_Akis[[#This Row],[Tarih]],2)-1,WEEKNUM(Nakit_Akis[[#This Row],[Tarih]],2)) -> 29 | F101: =IF(Nakit_Akis[[#This Row],[İşlem Türü]]="Başlangıç Bakiye",MONTH(Nakit_Akis[[#This Row],[Tarih]])-1,MONTH(Nakit_Akis[[#This Row],[Tarih]])) -> 7 | G101: =VLOOKUP(J101,Grup[#All],3,0) -> Nakit Çıkışları | H101: =VLOOKUP(J101,Grup[#All],2,0) -> Operasyon | I101: Çek | J101: Tedarikçi Ödemeleri | K101: B Madencilik | M101: -12500 | N101: =IF(OR(AND(Nakit_Akis[[#This Row],[Giriş/Çıkış]]="Nakit Çıkışları",Nakit_Akis[[#This Row],[Tutar]]<0),AND(Nakit_Akis[[#This Row],[Giriş/Çıkış]]<>"Nakit Çıkışları",Nakit_Akis[[#This Row],[Tutar]]>0)),"","Hata") ->  | O101: =SUM(INDEX(Nakit_Akis[Tutar],1):Nakit_Akis[[#This Row],[Tutar]]) -> 24600
B102: =COUNTA(INDEX(Nakit_Akis[Tarih],1):Nakit_Akis[[#This Row],[Tarih]]) -> 80 | C102: 2020-07-14 | D102: =VLOOKUP(WEEKDAY(Nakit_Akis[[#This Row],[Tarih]],2),Gunler[#All],2,0) -> Salı | E102: =IF(Nakit_Akis[[#This Row],[İşlem Türü]]="Başlangıç Bakiye",WEEKNUM(Nakit_Akis[[#This Row],[Tarih]],2)-1,WEEKNUM(Nakit_Akis[[#This Row],[Tarih]],2)) -> 29 | F102: =IF(Nakit_Akis[[#This Row],[İşlem Türü]]="Başlangıç Bakiye",MONTH(Nakit_Akis[[#This Row],[Tarih]])-1,MONTH(Nakit_Akis[[#This Row],[Tarih]])) -> 7 | G102: =VLOOKUP(J102,Grup[#All],3,0) -> Nakit Çıkışları | H102: =VLOOKUP(J102,Grup[#All],2,0) -> Operasyon | I102: EFT | J102: Tedarikçi Ödemeleri | K102: E Toptan Ticaret | M102: -7500 | N102: =IF(OR(AND(Nakit_Akis[[#This Row],[Giriş/Çıkış]]="Nakit Çıkışları",Nakit_Akis[[#This Row],[Tutar]]<0),AND(Nakit_Akis[[#This Row],[Giriş/Çıkış]]<>"Nakit Çıkışları",Nakit_Akis[[#This Row],[Tutar]]>0)),"","Hata") ->  | O102: =SUM(INDEX(Nakit_Akis[Tutar],1):Nakit_Akis[[#This Row],[Tutar]]) -> 17100
B103: =COUNTA(INDEX(Nakit_Akis[Tarih],1):Nakit_Akis[[#This Row],[Tarih]]) -> 81 | C103: 2020-07-14 | D103: =VLOOKUP(WEEKDAY(Nakit_Akis[[#This Row],[Tarih]],2),Gunler[#All],2,0) -> Salı | E103: =IF(Nakit_Akis[[#This Row],[İşlem Türü]]="Başlangıç Bakiye",WEEKNUM(Nakit_Akis[[#This Row],[Tarih]],2)-1,WEEKNUM(Nakit_Akis[[#This Row],[Tarih]],2)) -> 29 | F103: =IF(Nakit_Akis[[#This Row],[İşlem Türü]]="Başlangıç Bakiye",MONTH(Nakit_Akis[[#This Row],[Tarih]])-1,MONTH(Nakit_Akis[[#This Row],[Tarih]])) -> 7 | G103: =VLOOKUP(J103,Grup[#All],3,0) -> Nakit Çıkışları | H103: =VLOOKUP(J103,Grup[#All],2,0) -> Operasyon | I103: Çek | J103: Tedarikçi Ödemeleri | K103: B Madencilik | M103: -12500 | N103: =IF(OR(AND(Nakit_Akis[[#This Row],[Giriş/Çıkış]]="Nakit Çıkışları",Nakit_Akis[[#This Row],[Tutar]]<0),AND(Nakit_Akis[[#This Row],[Giriş/Çıkış]]<>"Nakit Çıkışları",Nakit_Akis[[#This Row],[Tutar]]>0)),"","Hata") ->  | O103: =SUM(INDEX(Nakit_Akis[Tutar],1):Nakit_Akis[[#This Row],[Tutar]]) -> 4600
B104: =COUNTA(INDEX(Nakit_Akis[Tarih],1):Nakit_Akis[[#This Row],[Tarih]]) -> 82 | C104: 2020-07-15 | D104: =VLOOKUP(WEEKDAY(Nakit_Akis[[#This Row],[Tarih]],2),Gunler[#All],2,0) -> Çarşamba | E104: =IF(Nakit_Akis[[#This Row],[İşlem Türü]]="Başlangıç Bakiye",WEEKNUM(Nakit_Akis[[#This Row],[Tarih]],2)-1,WEEKNUM(Nakit_Akis[[#This Row],[Tarih]],2)) -> 29 | F104: =IF(Nakit_Akis[[#This Row],[İşlem Türü]]="Başlangıç Bakiye",MONTH(Nakit_Akis[[#This Row],[Tarih]])-1,MONTH(Nakit_Akis[[#This Row],[Tarih]])) -> 7 | G104: =VLOOKUP(J104,Grup[#All],3,0) -> Nakit Çıkışları | H104: =VLOOKUP(J104,Grup[#All],2,0) -> Operasyon | I104: EFT | J104: Elektrik / Su / Doğalgaz | K104: D Doğalgaz Dağıtım | M104: -100 | N104: =IF(OR(AND(Nakit_Akis[[#This Row],[Giriş/Çıkış]]="Nakit Çıkışları",Nakit_Akis[[#This Row],[Tutar]]<0),AND(Nakit_Akis[[#This Row],[Giriş/Çıkış]]<>"Nakit Çıkışları",Nakit_Akis[[#This Row],[Tutar]]>0)),"","Hata") ->  | O104: =SUM(INDEX(Nakit_Akis[Tutar],1):Nakit_Akis[[#This Row],[Tutar]]) -> 4500
B105: =COUNTA(INDEX(Nakit_Akis[Tarih],1):Nakit_Akis[[#This Row],[Tarih]]) -> 83 | C105: 2020-07-15 | D105: =VLOOKUP(WEEKDAY(Nakit_Akis[[#This Row],[Tarih]],2),Gunler[#All],2,0) -> Çarşamba | E105: =IF(Nakit_Akis[[#This Row],[İşlem Türü]]="Başlangıç Bakiye",WEEKNUM(Nakit_Akis[[#This Row],[Tarih]],2)-1,WEEKNUM(Nakit_Akis[[#This Row],[Tarih]],2)) -> 29 | F105: =IF(Nakit_Akis[[#This Row],[İşlem Türü]]="Başlangıç Bakiye",MONTH(Nakit_Akis[[#This Row],[Tarih]])-1,MONTH(Nakit_Akis[[#This Row],[Tarih]])) -> 7 | G105: =VLOOKUP(J105,Grup[#All],3,0) -> Nakit Çıkışları | H105: =VLOOKUP(J105,Grup[#All],2,0) -> Operasyon | I105: EFT | J105: Elektrik / Su / Doğalgaz | K105: S Su ve Kanalizasyon | M105: -300 | N105: =IF(OR(AND(Nakit_Akis[[#This Row],[Giriş/Çıkış]]="Nakit Çıkışları",Nakit_Akis[[#This Row],[Tutar]]<0),AND(Nakit_Akis[[#This Row],[Giriş/Çıkış]]<>"Nakit Çıkışları",Nakit_Akis[[#This Row],[Tutar]]>0)),"","Hata") ->  | O105: =SUM(INDEX(Nakit_Akis[Tutar],1):Nakit_Akis[[#This Row],[Tutar]]) -> 4200
B106: =COUNTA(INDEX(Nakit_Akis[Tarih],1):Nakit_Akis[[#This Row],[Tarih]]) -> 84 | C106: 2020-07-15 | D106: =VLOOKUP(WEEKDAY(Nakit_Akis[[#This Row],[Tarih]],2),Gunler[#All],2,0) -> Çarşamba | E106: =IF(Nakit_Akis[[#This Row],[İşlem Türü]]="Başlangıç Bakiye",WEEKNUM(Nakit_Akis[[#This Row],[Tarih]],2)-1,WEEKNUM(Nakit_Akis[[#This Row],[Tarih]],2)) -> 29 | F106: =IF(Nakit_Akis[[#This Row],[İşlem Türü]]="Başlangıç Bakiye",MONTH(Nakit_Akis[[#This Row],[Tarih]])-1,MONTH(Nakit_Akis[[#This Row],[Tarih]])) -> 7 | G106: =VLOOKUP(J106,Grup[#All],3,0) -> Nakit Çıkışları | H106: =VLOOKUP(J106,Grup[#All],2,0) -> Operasyon | I106: EFT | J106: Sigorta Primleri | K106: S Sigorta Acentası | M106: -300 | N106: =IF(OR(AND(Nakit_Akis[[#This Row],[Giriş/Çıkış]]="Nakit Çıkışları",Nakit_Akis[[#This Row],[Tutar]]<0),AND(Nakit_Akis[[#This Row],[Giriş/Çıkış]]<>"Nakit Çıkışları",Nakit_Akis[[#This Row],[Tutar]]>0)),"","Hata") ->  | O106: =SUM(INDEX(Nakit_Akis[Tutar],1):Nakit_Akis[[#This Row],[Tutar]]) -> 3900
B107: =COUNTA(INDEX(Nakit_Akis[Tarih],1):Nakit_Akis[[#This Row],[Tarih]]) -> 85 | C107: 2020-07-15 | D107: =VLOOKUP(WEEKDAY(Nakit_Akis[[#This Row],[Tarih]],2),Gunler[#All],2,0) -> Çarşamba | E107: =IF(Nakit_Akis[[#This Row],[İşlem Türü]]="Başlangıç Bakiye",WEEKNUM(Nakit_Akis[[#This Row],[Tarih]],2)-1,WEEKNUM(Nakit_Akis[[#This Row],[Tarih]],2)) -> 29 | F107: =IF(Nakit_Akis[[#This Row],[İşlem Türü]]="Başlangıç Bakiye",MONTH(Nakit_Akis[[#This Row],[Tarih]])-1,MONTH(Nakit_Akis[[#This Row],[Tarih]])) -> 7 | G107: =VLOOKUP(J107,Grup[#All],3,0) -> Nakit Çıkışları | H107: =VLOOKUP(J107,Grup[#All],2,0) -> Operasyon | I107: EFT | J107: Elektrik / Su / Doğalgaz | K107: G Elektrik Dağıtım | M107: -1000 | N107: =IF(OR(AND(Nakit_Akis[[#This Row],[Giriş/Çıkış]]="Nakit Çıkışları",Nakit_Akis[[#This Row],[Tutar]]<0),AND(Nakit_Akis[[#This Row],[Giriş/Çıkış]]<>"Nakit Çıkışları",Nakit_Akis[[#This Row],[Tutar]]>0)),"","Hata") ->  | O107: =SUM(INDEX(Nakit_Akis[Tutar],1):Nakit_Akis[[#This Row],[Tutar]]) -> 2900
B108: =COUNTA(INDEX(Nakit_Akis[Tarih],1):Nakit_Akis[[#This Row],[Tarih]]) -> 86 | C108: 2020-07-21 | D108: =VLOOKUP(WEEKDAY(Nakit_Akis[[#This Row],[Tarih]],2),Gunler[#All],2,0) -> Salı | E108: =IF(Nakit_Akis[[#This Row],[İşlem Türü]]="Başlangıç Bakiye",WEEKNUM(Nakit_Akis[[#This Row],[Tarih]],2)-1,WEEKNUM(Nakit_Akis[[#This Row],[Tarih]],2)) -> 30 | F108: =IF(Nakit_Akis[[#This Row],[İşlem Türü]]="Başlangıç Bakiye",MONTH(Nakit_Akis[[#This Row],[Tarih]])-1,MONTH(Nakit_Akis[[#This Row],[Tarih]])) -> 7 | G108: =VLOOKUP(J108,Grup[#All],3,0) -> Nakit Girişleri | H108: =VLOOKUP(J108,Grup[#All],2,0) -> Operasyon | I108: Çek | J108: Tahsilatlar | K108: B İnşaat | M108: 15000 | N108: =IF(OR(AND(Nakit_Akis[[#This Row],[Giriş/Çıkış]]="Nakit Çıkışları",Nakit_Akis[[#This Row],[Tutar]]<0),AND(Nakit_Akis[[#This Row],[Giriş/Çıkış]]<>"Nakit Çıkışları",Nakit_Akis[[#This Row],[Tutar]]>0)),"","Hata") ->  | O108: =SUM(INDEX(Nakit_Akis[Tutar],1):Nakit_Akis[[#This Row],[Tutar]]) -> 17900
B109: =COUNTA(INDEX(Nakit_Akis[Tarih],1):Nakit_Akis[[#This Row],[Tarih]]) -> 87 | C109: 2020-07-22 | D109: =VLOOKUP(WEEKDAY(Nakit_Akis[[#This Row],[Tarih]],2),Gunler[#All],2,0) -> Çarşamba | E109: =IF(Nakit_Akis[[#This Row],[İşlem Türü]]="Başlangıç Bakiye",WEEKNUM(Nakit_Akis[[#This Row],[Tarih]],2)-1,WEEKNUM(Nakit_Akis[[#This Row],[Tarih]],2)) -> 30 | F109: =IF(Nakit_Akis[[#This Row],[İşlem Türü]]="Başlangıç Bakiye",MONTH(Nakit_Akis[[#This Row],[Tarih]])-1,MONTH(Nakit_Akis[[#This Row],[Tarih]])) -> 7 | G109: =VLOOKUP(J109,Grup[#All],3,0) -> Nakit Çıkışları | H109: =VLOOKUP(J109,Grup[#All],2,0) -> Operasyon | I109: Çek | J109: Tedarikçi Ödemeleri | K109: C Nakliyat | M109: -2500 | N109: =IF(OR(AND(Nakit_Akis[[#This Row],[Giriş/Çıkış]]="Nakit Çıkışları",Nakit_Akis[[#This Row],[Tutar]]<0),AND(Nakit_Akis[[#This Row],[Giriş/Çıkış]]<>"Nakit Çıkışları",Nakit_Akis[[#This Row],[Tutar]]>0)),"","Hata") ->  | O109: =SUM(INDEX(Nakit_Akis[Tutar],1):Nakit_Akis[[#This Row],[Tutar]]) -> 15400
B110: =COUNTA(INDEX(Nakit_Akis[Tarih],1):Nakit_Akis[[#This Row],[Tarih]]) -> 88 | C110: 2020-07-23 | D110: =VLOOKUP(WEEKDAY(Nakit_Akis[[#This Row],[Tarih]],2),Gunler[#All],2,0) -> Perşembe | E110: =IF(Nakit_Akis[[#This Row],[İşlem Türü]]="Başlangıç Bakiye",WEEKNUM(Nakit_Akis[[#This Row],[Tarih]],2)-1,WEEKNUM(Nakit_Akis[[#This Row],[Tarih]],2)) -> 30 | F110: =IF(Nakit_Akis[[#This Row],[İşlem Türü]]="Başlangıç Bakiye",MONTH(Nakit_Akis[[#This Row],[Tarih]])-1,MONTH(Nakit_Akis[[#This Row],[Tarih]])) -> 7 | G110: =VLOOKUP(J110,Grup[#All],3,0) -> Nakit Girişleri | H110: =VLOOKUP(J110,Grup[#All],2,0) -> Operasyon | I110: EFT | J110: Tahsilatlar | K110: C Mimarlık | M110: 25000 | N110: =IF(OR(AND(Nakit_Akis[[#This Row],[Giriş/Çıkış]]="Nakit Çıkışları",Nakit_Akis[[#This Row],[Tutar]]<0),AND(Nakit_Akis[[#This Row],[Giriş/Çıkış]]<>"Nakit Çıkışları",Nakit_Akis[[#This Row],[Tutar]]>0)),"","Hata") ->  | O110: =SUM(INDEX(Nakit_Akis[Tutar],1):Nakit_Akis[[#This Row],[Tutar]]) -> 40400
B111: =COUNTA(INDEX(Nakit_Akis[Tarih],1):Nakit_Akis[[#This Row],[Tarih]]) -> 89 | C111: 2020-07-23 | D111: =VLOOKUP(WEEKDAY(Nakit_Akis[[#This Row],[Tarih]],2),Gunler[#All],2,0) -> Perşembe | E111: =IF(Nakit_Akis[[#This Row],[İşlem Türü]]="Başlangıç Bakiye",WEEKNUM(Nakit_Akis[[#This Row],[Tarih]],2)-1,WEEKNUM(Nakit_Akis[[#This Row],[Tarih]],2)) -> 30 | F111: =IF(Nakit_Akis[[#This Row],[İşlem Türü]]="Başlangıç Bakiye",MONTH(Nakit_Akis[[#This Row],[Tarih]])-1,MONTH(Nakit_Akis[[#This Row],[Tarih]])) -> 7 | G111: =VLOOKUP(J111,Grup[#All],3,0) -> Nakit Çıkışları | H111: =VLOOKUP(J111,Grup[#All],2,0) -> Operasyon | I111: EFT | J111: Muhtasar Ödemeleri | K111: Vergi Dairesi | M111: -11000 | N111: =IF(OR(AND(Nakit_Akis[[#This Row],[Giriş/Çıkış]]="Nakit Çıkışları",Nakit_Akis[[#This Row],[Tutar]]<0),AND(Nakit_Akis[[#This Row],[Giriş/Çıkış]]<>"Nakit Çıkışları",Nakit_Akis[[#This Row],[Tutar]]>0)),"","Hata") ->  | O111: =SUM(INDEX(Nakit_Akis[Tutar],1):Nakit_Akis[[#This Row],[Tutar]]) -> 29400
B112: =COUNTA(INDEX(Nakit_Akis[Tarih],1):Nakit_Akis[[#This Row],[Tarih]]) -> 90 | C112: 2020-07-24 | D112: =VLOOKUP(WEEKDAY(Nakit_Akis[[#This Row],[Tarih]],2),Gunler[#All],2,0) -> Cuma | E112: =IF(Nakit_Akis[[#This Row],[İşlem Türü]]="Başlangıç Bakiye",WEEKNUM(Nakit_Akis[[#This Row],[Tarih]],2)-1,WEEKNUM(Nakit_Akis[[#This Row],[Tarih]],2)) -> 30 | F112: =IF(Nakit_Akis[[#This Row],[İşlem Türü]]="Başlangıç Bakiye",MONTH(Nakit_Akis[[#This Row],[Tarih]])-1,MONTH(Nakit_Akis[[#This Row],[Tarih]])) -> 7 | G112: =VLOOKUP(J112,Grup[#All],3,0) -> Nakit Çıkışları | H112: =VLOOKUP(J112,Grup[#All],2,0) -> Operasyon | I112: EFT | J112: KDV Ödemeleri | K112: Vergi Dairesi | M112: -27500 | N112: =IF(OR(AND(Nakit_Akis[[#This Row],[Giriş/Çıkış]]="Nakit Çıkışları",Nakit_Akis[[#This Row],[Tutar]]<0),AND(Nakit_Akis[[#This Row],[Giriş/Çıkış]]<>"Nakit Çıkışları",Nakit_Akis[[#This Row],[Tutar]]>0)),"","Hata") ->  | O112: =SUM(INDEX(Nakit_Akis[Tutar],1):Nakit_Akis[[#This Row],[Tutar]]) -> 1900
B113: =COUNTA(INDEX(Nakit_Akis[Tarih],1):Nakit_Akis[[#This Row],[Tarih]]) -> 91 | C113: 2020-07-27 | D113: =VLOOKUP(WEEKDAY(Nakit_Akis[[#This Row],[Tarih]],2),Gunler[#All],2,0) -> Pazartesi | E113: =IF(Nakit_Akis[[#This Row],[İşlem Türü]]="Başlangıç Bakiye",WEEKNUM(Nakit_Akis[[#This Row],[Tarih]],2)-1,WEEKNUM(Nakit_Akis[[#This Row],[Tarih]],2)) -> 31 | F113: =IF(Nakit_Akis[[#This Row],[İşlem Türü]]="Başlangıç Bakiye",MONTH(Nakit_Akis[[#This Row],[Tarih]])-1,MONTH(Nakit_Akis[[#This Row],[Tarih]])) -> 7 | G113: =VLOOKUP(J113,Grup[#All],3,0) -> Nakit Girişleri | H113: =VLOOKUP(J113,Grup[#All],2,0) -> Operasyon | I113: EFT | J113: Tahsilatlar | K113: A Ticaret | M113: 20000 | N113: =IF(OR(AND(Nakit_Akis[[#This Row],[Giriş/Çıkış]]="Nakit Çıkışları",Nakit_Akis[[#This Row],[Tutar]]<0),AND(Nakit_Akis[[#This Row],[Giriş/Çıkış]]<>"Nakit Çıkışları",Nakit_Akis[[#This Row],[Tutar]]>0)),"","Hata") ->  | O113: =SUM(INDEX(Nakit_Akis[Tutar],1):Nakit_Akis[[#This Row],[Tutar]]) -> 21900
B114: =COUNTA(INDEX(Nakit_Akis[Tarih],1):Nakit_Akis[[#This Row],[Tarih]]) -> 92 | C114: 2020-07-27 | D114: =VLOOKUP(WEEKDAY(Nakit_Akis[[#This Row],[Tarih]],2),Gunler[#All],2,0) -> Pazartesi | E114: =IF(Nakit_Akis[[#This Row],[İşlem Türü]]="Başlangıç Bakiye",WEEKNUM(Nakit_Akis[[#This Row],[Tarih]],2)-1,WEEKNUM(Nakit_Akis[[#This Row],[Tarih]],2)) -> 31 | F114: =IF(Nakit_Akis[[#This Row],[İşlem Türü]]="Başlangıç Bakiye",MONTH(Nakit_Akis[[#This Row],[Tarih]])-1,MONTH(Nakit_Akis[[#This Row],[Tarih]])) -> 7 | G114: =VLOOKUP(J114,Grup[#All],3,0) -> Nakit Çıkışları | H114: =VLOOKUP(J114,Grup[#All],2,0) -> Operasyon | I114: EFT | J114: Tedarikçi Ödemeleri | K114: E Toptan Ticaret | M114: -7500 | N114: =IF(OR(AND(Nakit_Akis[[#This Row],[Giriş/Çıkış]]="Nakit Çıkışları",Nakit_Akis[[#This Row],[Tutar]]<0),AND(Nakit_Akis[[#This Row],[Giriş/Çıkış]]<>"Nakit Çıkışları",Nakit_Akis[[#This Row],[Tutar]]>0)),"","Hata") ->  | O114: =SUM(INDEX(Nakit_Akis[Tutar],1):Nakit_Akis[[#This Row],[Tutar]]) -> 14400
B115: =COUNTA(INDEX(Nakit_Akis[Tarih],1):Nakit_Akis[[#This Row],[Tarih]]) -> 93 | C115: 2020-07-28 | D115: =VLOOKUP(WEEKDAY(Nakit_Akis[[#This Row],[Tarih]],2),Gunler[#All],2,0) -> Salı | E115: =IF(Nakit_Akis[[#This Row],[İşlem Türü]]="Başlangıç Bakiye",WEEKNUM(Nakit_Akis[[#This Row],[Tarih]],2)-1,WEEKNUM(Nakit_Akis[[#This Row],[Tarih]],2)) -> 31 | F115: =IF(Nakit_Akis[[#This Row],[İşlem Türü]]="Başlangıç Bakiye",MONTH(Nakit_Akis[[#This Row],[Tarih]])-1,MONTH(Nakit_Akis[[#This Row],[Tarih]])) -> 7 | G115: =VLOOKUP(J115,Grup[#All],3,0) -> Nakit Çıkışları | H115: =VLOOKUP(J115,Grup[#All],2,0) -> Operasyon | I115: Çek | J115: Tedarikçi Ödemeleri | K115: D Nalburiye | M115: -2500 | N115: =IF(OR(AND(Nakit_Akis[[#This Row],[Giriş/Çıkış]]="Nakit Çıkışları",Nakit_Akis[[#This Row],[Tutar]]<0),AND(Nakit_Akis[[#This Row],[Giriş/Çıkış]]<>"Nakit Çıkışları",Nakit_Akis[[#This Row],[Tutar]]>0)),"","Hata") ->  | O115: =SUM(INDEX(Nakit_Akis[Tutar],1):Nakit_Akis[[#This Row],[Tutar]]) -> 11900
B116: =COUNTA(INDEX(Nakit_Akis[Tarih],1):Nakit_Akis[[#This Row],[Tarih]]) -> 94 | C116: 2020-07-29 | D116: =VLOOKUP(WEEKDAY(Nakit_Akis[[#This Row],[Tarih]],2),Gunler[#All],2,0) -> Çarşamba | E116: =IF(Nakit_Akis[[#This Row],[İşlem Türü]]="Başlangıç Bakiye",WEEKNUM(Nakit_Akis[[#This Row],[Tarih]],2)-1,WEEKNUM(Nakit_Akis[[#This Row],[Tarih]],2)) -> 31 | F116: =IF(Nakit_Akis[[#This Row],[İşlem Türü]]="Başlangıç Bakiye",MONTH(Nakit_Akis[[#This Row],[Tarih]])-1,MONTH(Nakit_Akis[[#This Row],[Tarih]])) -> 7 | G116: =VLOOKUP(J116,Grup[#All],3,0) -> Nakit Çıkışları | H116: =VLOOKUP(J116,Grup[#All],2,0) -> Operasyon | I116: EFT | J116: SGK Ödemeleri | K116: SGK | M116: -2000 | N116: =IF(OR(AND(Nakit_Akis[[#This Row],[Giriş/Çıkış]]="Nakit Çıkışları",Nakit_Akis[[#This Row],[Tutar]]<0),AND(Nakit_Akis[[#This Row],[Giriş/Çıkış]]<>"Nakit Çıkışları",Nakit_Akis[[#This Row],[Tutar]]>0)),"","Hata") ->  | O116: =SUM(INDEX(Nakit_Akis[Tutar],1):Nakit_Akis[[#This Row],[Tutar]]) -> 9900
B117: =COUNTA(INDEX(Nakit_Akis[Tarih],1):Nakit_Akis[[#This Row],[Tarih]]) -> 95 | C117: 2020-07-30 | D117: =VLOOKUP(WEEKDAY(Nakit_Akis[[#This Row],[Tarih]],2),Gunler[#All],2,0) -> Perşembe | E117: =IF(Nakit_Akis[[#This Row],[İşlem Türü]]="Başlangıç Bakiye",WEEKNUM(Nakit_Akis[[#This Row],[Tarih]],2)-1,WEEKNUM(Nakit_Akis[[#This Row],[Tarih]],2)) -> 31 | F117: =IF(Nakit_Akis[[#This Row],[İşlem Türü]]="Başlangıç Bakiye",MONTH(Nakit_Akis[[#This Row],[Tarih]])-1,MONTH(Nakit_Akis[[#This Row],[Tarih]])) -> 7 | G117: =VLOOKUP(J117,Grup[#All],3,0) -> Nakit Girişleri | H117: =VLOOKUP(J117,Grup[#All],2,0) -> Operasyon | I117: EFT | J117: Tahsilatlar | K117: F Mühendislik | M117: 25000 | N117: =IF(OR(AND(Nakit_Akis[[#This Row],[Giriş/Çıkış]]="Nakit Çıkışları",Nakit_Akis[[#This Row],[Tutar]]<0),AND(Nakit_Akis[[#This Row],[Giriş/Çıkış]]<>"Nakit Çıkışları",Nakit_Akis[[#This Row],[Tutar]]>0)),"","Hata") ->  | O117: =SUM(INDEX(Nakit_Akis[Tutar],1):Nakit_Akis[[#This Row],[Tutar]]) -> 34900
B118: =COUNTA(INDEX(Nakit_Akis[Tarih],1):Nakit_Akis[[#This Row],[Tarih]]) -> 96 | C118: 2020-07-30 | D118: =VLOOKUP(WEEKDAY(Nakit_Akis[[#This Row],[Tarih]],2),Gunler[#All],2,0) -> Perşembe | E118: =IF(Nakit_Akis[[#This Row],[İşlem Türü]]="Başlangıç Bakiye",WEEKNUM(Nakit_Akis[[#This Row],[Tarih]],2)-1,WEEKNUM(Nakit_Akis[[#This Row],[Tarih]],2)) -> 31 | F118: =IF(Nakit_Akis[[#This Row],[İşlem Türü]]="Başlangıç Bakiye",MONTH(Nakit_Akis[[#This Row],[Tarih]])-1,MONTH(Nakit_Akis[[#This Row],[Tarih]])) -> 7 | G118: =VLOOKUP(J118,Grup[#All],3,0) -> Nakit Çıkışları | H118: =VLOOKUP(J118,Grup[#All],2,0) -> Finansman | I118: EFT | J118: Faiz Ödemeleri | K118: Vergi Dairesi | M118: -3000 | N118: =IF(OR(AND(Nakit_Akis[[#This Row],[Giriş/Çıkış]]="Nakit Çıkışları",Nakit_Akis[[#This Row],[Tutar]]<0),AND(Nakit_Akis[[#This Row],[Giriş/Çıkış]]<>"Nakit Çıkışları",Nakit_Akis[[#This Row],[Tutar]]>0)),"","Hata") ->  | O118: =SUM(INDEX(Nakit_Akis[Tutar],1):Nakit_Akis[[#This Row],[Tutar]]) -> 31900
B119: =COUNTA(INDEX(Nakit_Akis[Tarih],1):Nakit_Akis[[#This Row],[Tarih]]) -> 97 | C119: 2020-07-30 | D119: =VLOOKUP(WEEKDAY(Nakit_Akis[[#This Row],[Tarih]],2),Gunler[#All],2,0) -> Perşembe | E119: =IF(Nakit_Akis[[#This Row],[İşlem Türü]]="Başlangıç Bakiye",WEEKNUM(Nakit_Akis[[#This Row],[Tarih]],2)-1,WEEKNUM(Nakit_Akis[[#This Row],[Tarih]],2)) -> 31 | F119: =IF(Nakit_Akis[[#This Row],[İşlem Türü]]="Başlangıç Bakiye",MONTH(Nakit_Akis[[#This Row],[Tarih]])-1,MONTH(Nakit_Akis[[#This Row],[Tarih]])) -> 7 | G119: =VLOOKUP(J119,Grup[#All],3,0) -> Nakit Çıkışları | H119: =VLOOKUP(J119,Grup[#All],2,0) -> Finansman | I119: EFT | J119: Kredi Geri Ödemeleri | K119: X Bank | M119: -20000 | N119: =IF(OR(AND(Nakit_Akis[[#This Row],[Giriş/Çıkış]]="Nakit Çıkışları",Nakit_Akis[[#This Row],[Tutar]]<0),AND(Nakit_Akis[[#This Row],[Giriş/Çıkış]]<>"Nakit Çıkışları",Nakit_Akis[[#This Row],[Tutar]]>0)),"","Hata") ->  | O119: =SUM(INDEX(Nakit_Akis[Tutar],1):Nakit_Akis[[#This Row],[Tutar]]) -> 11900
C1020: 2020-12-12
C1045: a | G1045: a | H1045: a | J1045: a | K1045: a | L1045: a | M1045: a

Sheet Haftalık Analiz
A1: Nakit Akış Raporu / Haftalık Analiz
A2: ='Nakit Akış'!A2:D2 -> 2020-04-30
B7: Nakit Akış | C7: Hafta
B8: Kalemler | C8: 17 | D8: 18 | E8: 19 | F8: 20 | G8: 21 | H8: 22 | I8: 23 | J8: 24 | K8: 25 | L8: 26 | M8: 27 | N8: 28 | O8: 29 | P8: 30 | Q8: 31 | R8: Toplam
B9: Başlangıç Bakiye | C9: 100000 | D9: 0 | E9: 0 | F9: 0 | G9: 0 | H9: 0 | I9: 0 | J9: 0 | K9: 0 | L9: 0 | M9: 0 | N9: 0 | O9: 0 | P9: 0 | Q9: 0 | R9: 100000
B10: Nakit Girişleri | C10: 0 | D10: 0 | E10: 50000 | F10: 70000 | G10: 25000 | H10: 55000 | I10: 105000 | J10: 30000 | K10: 65000 | L10: 70000 | M10: 73000 | N10: 92000 | O10: 0 | P10: 40000 | Q10: 45000 | R10: 720000
B11: Operasyon | C11: 0 | D11: 0 | E11: 50000 | F11: 70000 | G11: 25000 | H11: 55000 | I11: 70000 | J11: 30000 | K11: 50000 | L11: 70000 | M11: 73000 | N11: 92000 | O11: 0 | P11: 40000 | Q11: 45000 | R11: 670000
B12: Tahsilatlar | C12: 0 | D12: 0 | E12: 50000 | F12: 70000 | G12: 25000 | H12: 55000 | I12: 70000 | J12: 30000 | K12: 50000 | L12: 70000 | M12: 73000 | N12: 92000 | O12: 0 | P12: 40000 | Q12: 45000 | R12: 670000
B13: Yatırım | C13: 0 | D13: 0 | E13: 0 | F13: 0 | G13: 0 | H13: 0 | I13: 0 | J13: 0 | K13: 15000 | L13: 0 | M13: 0 | N13: 0 | O13: 0 | P13: 0 | Q13: 0 | R13: 15000
B14: Demirbaş Satış Tahsilatı | C14: 0 | D14: 0 | E14: 0 | F14: 0 | G14: 0 | H14: 0 | I14: 0 | J14: 0 | K14: 15000 | L14: 0 | M14: 0 | N14: 0 | O14: 0 | P14: 0 | Q14: 0 | R14: 15000
B15: Finasman | C15: 0 | D15: 0 | E15: 0 | F15: 0 | G15: 0 | H15: 0 | I15: 35000 | J15: 0 | K15: 0 | L15: 0 | M15: 0 | N15: 0 | O15: 0 | P15: 0 | Q15: 0 | R15: 35000
B16: Kredi Kullanımları | C16: 0 | D16: 0 | E16: 0 | F16: 0 | G16: 0 | H16: 0 | I16: 35000 | J16: 0 | K16: 0 | L16: 0 | M16: 0 | N16: 0 | O16: 0 | P16: 0 | Q16: 0 | R16: 35000
B17: Nakit Çıkışları | C17: 0 | D17: -10000 | E17: -137500 | F17: -36700 | G17: -10000 | H17: -67500 | I17: -150000 | J17: 0 | K17: -11700 | L17: -84500 | M17: -37500 | N17: -150000 | O17: -36700 | P17: -41000 | Q17: -35000 | R17: -808100
B18: Operasyon | C18: 0 | D18: -10000 | E18: -137500 | F18: -36700 | G18: -10000 | H18: -44500 | I18: -150000 | J18: 0 | K18: -11700 | L18: -84500 | M18: -14500 | N18: -150000 | O18: -36700 | P18: -41000 | Q18: -12000 | R18: -739100
B19: Tedarikçi Ödemeleri | C19: 0 | D19: -10000 | E19: -37500 | F19: -35000 | G19: -10000 | H19: -10000 | I19: -47500 | J19: 0 | K19: -10000 | L19: -47500 | M19: -12500 | N19: -45000 | O19: -35000 | P19: -2500 | Q19: -10000 | R19: -312500
B20: Personel Ücretleri | C20: 0 | D20: 0 | E20: -90000 | F20: 0 | G20: 0 | H20: 0 | I20: -92500 | J20: 0 | K20: 0 | L20: 0 | M20: 0 | N20: -95000 | O20: 0 | P20: 0 | Q20: 0 | R20: -277500
B21: Kira Ödemeleri | C21: 0 | D21: 0 | E21: -10000 | F21: 0 | G21: 0 | H21: 0 | I21: -10000 | J21: 0 | K21: 0 | L21: 0 | M21: 0 | N21: -10000 | O21: 0 | P21: 0 | Q21: 0 | R21: -30000
B22: Elektrik / Su / Doğalgaz | C22: 0 | D22: 0 | E22: 0 | F22: -1400 | G22: 0 | H22: 0 | I22: 0 | J22: 0 | K22: -1400 | L22: 0 | M22: 0 | N22: 0 | O22: -1400 | P22: 0 | Q22: 0 | R22: -4200
B23: KDV Ödemeleri | C23: 0 | D23: 0 | E23: 0 | F23: 0 | G23: 0 | H23: -22500 | I23: 0 | J23: 0 | K23: 0 | L23: -25000 | M23: 0 | N23: 0 | O23: 0 | P23: -27500 | Q23: 0 | R23: -75000
B24: Muhtasar Ödemeleri | C24: 0 | D24: 0 | E24: 0 | F24: 0 | G24: 0 | H24: -10000 | I24: 0 | J24: 0 | K24: 0 | L24: -12000 | M24: 0 | N24: 0 | O24: 0 | P24: -11000 | Q24: 0 | R24: -33000
B25: SGK Ödemeleri | C25: 0 | D25: 0 | E25: 0 | F25: 0 | G25: 0 | H25: -2000 | I25: 0 | J25: 0 | K25: 0 | L25: 0 | M25: -2000 | N25: 0 | O25: 0 | P25: 0 | Q25: -2000 | R25: -6000
B26: Sigorta Primleri | C26: 0 | D26: 0 | E26: 0 | F26: -300 | G26: 0 | H26: 0 | I26: 0 | J26: 0 | K26: -300 | L26: 0 | M26: 0 | N26: 0 | O26: -300 | P26: 0 | Q26: 0 | R26: -900
B27: Finansman | C27: 0 | D27: 0 | E27: 0 | F27: 0 | G27: 0 | H27: -23000 | I27: 0 | J27: 0 | K27: 0 | L27: 0 | M27: -23000 | N27: 0 | O27: 0 | P27: 0 | Q27: -23000 | R27: -69000
B28: Kredi Geri Ödemeleri | C28: 0 | D28: 0 | E28: 0 | F28: 0 | G28: 0 | H28: -20000 | I28: 0 | J28: 0 | K28: 0 | L28: 0 | M28: -20000 | N28: 0 | O28: 0 | P28: 0 | Q28: -20000 | R28: -60000
B29: Faiz Ödemeleri | C29: 0 | D29: 0 | E29: 0 | F29: 0 | G29: 0 | H29: -3000 | I29: 0 | J29: 0 | K29: 0 | L29: 0 | M29: -3000 | N29: 0 | O29: 0 | P29: 0 | Q29: -3000 | R29: -9000
B30: Toplam | C30: 100000 | D30: -10000 | E30: -87500 | F30: 33300 | G30: 15000 | H30: -12500 | I30: -45000 | J30: 30000 | K30: 53300 | L30: -14500 | M30: 35500 | N30: -58000 | O30: -36700 | P30: -1000 | Q30: 10000 | R30: 11900

Sheet Aylık Analiz
A1: Nakit Akış Raporu / Aylık Analiz
A2: ='Nakit Akış'!A2:D2 -> 2020-04-30
B5: Nakit Akış | C5: Dönem
B6: Kalemler | C6: 4 | D6: 5 | E6: 6 | F6: 7 | G6: Toplam
B7: Başlangıç Bakiye | C7: 100000 | D7: 0 | E7: 0 | F7: 0 | G7: 100000
B8: Başlangıç Bakiye | C8: 100000 | D8: 0 | E8: 0 | F8: 0 | G8: 100000
B9: Başlangıç Bakiye | C9: 100000 | D9: 0 | E9: 0 | F9: 0 | G9: 100000
B10: Nakit Girişleri | C10: 0 | D10: 200000 | E10: 280000 | F10: 240000 | G10: 720000
B11: Operasyon | C11: 0 | D11: 200000 | E11: 230000 | F11: 240000 | G11: 670000
B12: Tahsilatlar | C12: 0 | D12: 200000 | E12: 230000 | F12: 240000 | G12: 670000
B13: Yatırım | C13: 0 | D13: 0 | E13: 15000 | F13: 0 | G13: 15000
B14: Demirbaş Satış Tahsilatı | C14: 0 | D14: 0 | E14: 15000 | F14: 0 | G14: 15000
B15: Finasman | C15: 0 | D15: 0 | E15: 35000 | F15: 0 | G15: 35000
B16: Kredi Kullanımları | C16: 0 | D16: 0 | E16: 35000 | F16: 0 | G16: 35000
B17: Nakit Çıkışları | C17: 0 | D17: -261700 | E17: -271200 | F17: -275200 | G17: -808100
B18: Operasyon | C18: 0 | D18: -238700 | E18: -248200 | F18: -252200 | G18: -739100
B19: Tedarikçi Ödemeleri | C19: 0 | D19: -102500 | E19: -105000 | F19: -105000 | G19: -312500
B20: Personel Ücretleri | C20: 0 | D20: -90000 | E20: -92500 | F20: -95000 | G20: -277500
B21: Kira Ödemeleri | C21: 0 | D21: -10000 | E21: -10000 | F21: -10000 | G21: -30000
B22: Elektrik / Su / Doğalgaz | C22: 0 | D22: -1400 | E22: -1400 | F22: -1400 | G22: -4200
B23: KDV Ödemeleri | C23: 0 | D23: -22500 | E23: -25000 | F23: -27500 | G23: -75000
B24: Muhtasar Ödemeleri | C24: 0 | D24: -10000 | E24: -12000 | F24: -11000 | G24: -33000
B25: SGK Ödemeleri | C25: 0 | D25: -2000 | E25: -2000 | F25: -2000 | G25: -6000
B26: Sigorta Primleri | C26: 0 | D26: -300 | E26: -300 | F26: -300 | G26: -900
B27: Finansman | C27: 0 | D27: -23000 | E27: -23000 | F27: -23000 | G27: -69000
B28: Kredi Geri Ödemeleri | C28: 0 | D28: -20000 | E28: -20000 | F28: -20000 | G28: -60000
B29: Faiz Ödemeleri | C29: 0 | D29: -3000 | E29: -3000 | F29: -3000 | G29: -9000
B30: Toplam | C30: 100000 | D30: -61700 | E30: 8800 | F30: -35200 | G30: 11900

Sheet Gruplar
A1: Nakit Akış Raporu / Grup Tanımları
A2: ='Nakit Akış'!A2:D2 -> 2020-04-30
B5: İşlem | C5: Grup | D5: Nakit | G5: Sayı | H5: Gün
B6: Bankacılık Masrafları | C6: Operasyon | D6: Nakit Çıkışları | G6: 1 | H6: Pazartesi
B7: Başlangıç Bakiye | C7: Başlangıç Bakiye | D7: Başlangıç Bakiye | G7: 2 | H7: Salı
B8: Demirbaş Alım Ödemeleri | C8: Yatırım | D8: Nakit Çıkışları | G8: 3 | H8: Çarşamba
B9: Demirbaş Satış Tahsilatı | C9: Yatırım | D9: Nakit Girişleri | G9: 4 | H9: Perşembe
B10: Elektrik / Su / Doğalgaz | C10: Operasyon | D10: Nakit Çıkışları | G10: 5 | H10: Cuma
B11: Faiz Ödemeleri | C11: Finansman | D11: Nakit Çıkışları | G11: 6 | H11: Cumartesi
B12: KDV Ödemeleri | C12: Operasyon | D12: Nakit Çıkışları | G12: 7 | H12: Pazar
B13: Kira Ödemeleri | C13: Operasyon | D13: Nakit Çıkışları
B14: Kredi Geri Ödemeleri | C14: Finansman | D14: Nakit Çıkışları
B15: Kredi Kartı Ödemeleri | C15: Operasyon | D15: Nakit Çıkışları
B16: Kredi Kullanımları | C16: Finasman | D16: Nakit Girişleri
B17: Kurumlar Vergisi Ödemeleri | C17: Operasyon | D17: Nakit Çıkışları
B18: Ortaklardan Borç | C18: Finansman | D18: Nakit Çıkışları
B19: Tedarikçi Ödemeleri | C19: Operasyon | D19: Nakit Çıkışları
B20: Personel Avansları | C20: Operasyon | D20: Nakit Çıkışları
B21: Personel Ücretleri | C21: Operasyon | D21: Nakit Çıkışları
B22: Sigorta Primleri | C22: Operasyon | D22: Nakit Çıkışları
B23: Tahsilatlar | C23: Operasyon | D23: Nakit Girişleri
B24: Muhtasar Ödemeleri | C24: Operasyon | D24: Nakit Çıkışları
B25: SGK Ödemeleri | C25: Operasyon | D25: Nakit Çıkışları
B26: nanay | C26: babay | D26: Nakit Çıkışları
